{"text_format":"1","workbook":"xlsx","n_sheets":4,"sheets":["Доходы","Расходы","ExportParams","Источники"],"not_rendered":{"charts":0,"images":1,"macros":1,"external_links":0,"defined_names":32,"comments":0,"pivot_tables":0},"unopened":[],"bounds":{"document_bytes":16777216,"sheet_cells":100000,"rows_first":2000,"rows_last":500,"rows_between":2000,"halvings":0,"cell_chars":16384,"cell_head_chars":4096},"cells_cut":0,"cells_raw":0,"read":"whole","date_system":"1900"}

{"sheet":"Доходы","index":0,"n_rows":127,"n_cols":8,"rows_kept":127,"cut":false,"hidden":false,"merged":[[10,5,16,5],[0,0,0,3],[1,0,1,3],[3,0,3,3],[5,1,5,3],[6,1,6,3],[9,0,9,3],[10,0,16,0],[10,1,16,1],[10,2,16,2],[10,3,16,3],[10,4,16,4]]}
[null,null,null,null,null,null,null,"RESPPERSONS&="]
["ОТЧЕТ ОБ ИСПОЛНЕНИИ БЮДЖЕТА",null,null,null,null,"КОДЫ"]
[null,null,null,null,"  Форма по ОКУД","0503117",null,"C:\\117M1.txt"]
["на 01  мая 2014 года",null,null,null,"                   Дата","01.05.2014",null,"01.05.2014"]
[null,null,null,null,"             по ОКПО","04032907",null,"117"]
["Наименование финансового органа:","Администрация МО \"Город Пикалево\"",null,null,"    Глава по БК","001",null,"3"]
["Наименование публично-правового образования:","Бюджет МО \"Город Пикалево\" Бокситогорского муниципального района Ленинградской области",null,null,"по ОКТМО","41603102"]
["Периодичность: месячная"]
["Единица измерения: руб.",null,null,null,"             по ОКЕИ","383",null,"1"]
["                                 1. Доходы бюджета"]
[" Наименование показателя","Код строки","Код дохода по бюджетной классификации","Утвержденные бюджетные назначения","Исполнено","Неисполненные назначения"]
[]
[]
[]
[]
[]
[]
[1,2,3,"4","5","6"]
["Доходы бюджета - всего","010","X",121730101.08,-273427880.56999999,{"$f":"IF(OR(D19=\"-\",E19=D19),\"-\",D19-IF(E19=\"-\",0,E19))","v":395157981.64999998}]
["в том числе:"]
["НАЛОГОВЫЕ И НЕНАЛОГОВЫЕ ДОХОДЫ","","000 10000000000000 000",100149832.26000001,27158590.73,{"$f":"IF(OR(D21=\"-\",E21=D21),\"-\",D21-IF(E21=\"-\",0,E21))","v":72991241.530000001}]
["НАЛОГИ НА ПРИБЫЛЬ, ДОХОДЫ","","000 10100000000000 000",24358200,7853745.4400000004,16504454.559999999]
["Налог на доходы физических лиц","","000 10102000010000 110",24358200,7853745.4400000004,16504454.559999999]
["Налог на доходы физических лиц с доходов, источником которых является налоговый агент, за исключением доходов, в отношении которых исчисление и уплата налога осуществляются в соответствии со статьями 227, 227.1 и 228 Налогового кодекса Российской Федерации","","000 10102010010000 110",24322927.48,7818472.9199999999,16504454.560000001]
["Налог на доходы физических лиц с доходов, источником которых является налоговый агент, за исключением доходов, в отношении которых исчисление и уплата налога осуществляются в соответствии со статьями 227, 227.1 и 228 Налогового кодекса Российской Федерации (сумма платежа (перерасчеты, недоимка и задолженность по соответствующему платежу, в том числе по отмененному))","","000 10102010011000 110",24322927.48,7791451.2199999997,16531476.260000002]
["Налог на доходы физических лиц с доходов, источником которых является налоговый агент, за исключением доходов, в отношении которых исчисление и уплата налога осуществляются в соответствии со статьями 227, 227.1 и 228 Налогового кодекса Российской Федерации (пени и проценты по соответствующему платежу)","","000 10102010012000 110","-",5886,"-"]
["Налог на доходы физических лиц с доходов, источником которых является налоговый агент, за исключением доходов, в отношении которых исчисление и уплата налога осуществляются в соответствии со статьями 227, 227.1 и 228 Налогового кодекса Российской Федерации (суммы денежных взысканий (штрафов) по соответствующему платежу согласно законодательству Российской Федерации)","","000 10102010013000 110","-",21135.7,"-"]
["Налог на доходы физических лиц с доходов, полученных от осуществления деятельности физическими лицами, зарегистрированными в качестве индивидуальных предпринимателей, нотариусов, занимающихся частной практикой, адвокатов, учредивших адвокатские кабинеты и других лиц, занимающихся частной практикой в соответствии со статьей 227 Налогового кодекса Российской Федерации","","000 10102020010000 110",23582.09,23582.09,"-"]
["Налог на доходы физических лиц с доходов, полученных от осуществления деятельности физическими лицами, зарегистрированными в качестве индивидуальных предпринимателей, нотариусов, занимающихся частной практикой, адвокатов, учредивших адвокатские кабинеты и других лиц, занимающихся частной практикой в соответствии со статьей 227 Налогового кодекса Российской Федерации (сумма платежа (перерасчеты, недоимка и задолженность по соответствующему платежу, в том числе по отмененному))","","000 10102020011000 110",23582.09,23302.1,279.9900000000016]
["Налог на доходы физических лиц с доходов, полученных от осуществления деятельности физическими лицами, зарегистрированными в качестве индивидуальных предпринимателей, нотариусов, занимающихся частной практикой, адвокатов, учредивших адвокатские кабинеты и других лиц, занимающихся частной практикой в соответствии со статьей 227 Налогового кодекса Российской Федерации (суммы денежных взысканий (штрафов) по соответствующему платежу согласно законодательству Российской Федерации)","","000 10102020013000 110","-",279.99,"-"]
["Налог на доходы физических лиц с доходов, полученных физическими лицами в соответствии со статьей 228 Налогового Кодекса Российской Федерации","","000 10102030010000 110",11690.43,11690.43,"-"]
["Налог на доходы физических лиц с доходов, полученных физическими лицами в соответствии со статьей 228 Налогового Кодекса Российской Федерации (сумма платежа (перерасчеты, недоимка и задолженность по соответствующему платежу, в том числе по отмененному))","","000 10102030011000 110",11690.43,11026.9,663.53000000000065]
["Налог на доходы физических лиц с доходов, полученных физическими лицами в соответствии со статьей 228 Налогового Кодекса Российской Федерации (пени и проценты по соответствующему платежу)","","000 10102030012000 110","-",78.19,"-"]
["Налог на доходы физических лиц с доходов, полученных физическими лицами в соответствии со статьей 228 Налогового Кодекса Российской Федерации (суммы денежных взысканий (штрафов) по соответствующему платежу согласно законодательству Российской Федерации)","","000 10102030013000 110","-",585.34,"-"]
["НАЛОГИ НА ТОВАРЫ (РАБОТЫ, УСЛУГИ), РЕАЛИЗУЕМЫЕ НА ТЕРРИТОРИИ РОССИЙСКОЙ ФЕДЕРАЦИИ","","000 10300000000000 000",377100,97880.7,279219.3]
["Акцизы по подакцизным товарам (продукции), производимым на территории Российской Федерации","","000 10302000010000 110",377100,97880.7,279219.3]
["Доходы от уплаты акцизов на дизельное топливо, зачисляемые в консолидированные бюджеты субъектов Российской Федерации","","000 10302230010000 110",150000,38216.5,111783.5]
["Доходы от уплаты акцизов на моторные масла для дизельных и (или) карбюраторных (инжекторных) двигателей, зачисляемые в консолидированные бюджеты субъектов Российской Федерации","","000 10302240010000 110",5000,687.42,4312.58]
["Доходы от уплаты акцизов на автомобильный бензин, производимый на территории Российской Федерации, зачисляемые в консолидированные бюджеты субъектов Российской Федерации","","000 10302250010000 110",217100,58975.16,158124.84]
["Доходы от уплаты акцизов на прямогонный бензин, производимый на территории Российской Федерации, зачисляемые в консолидированные бюджеты субъектов Российской Федерации","","000 10302260010000 110",5000,1.62,4998.38]
["НАЛОГИ НА СОВОКУПНЫЙ ДОХОД","","000 10500000000000 000",300,2169.5,-1869.5]
["Единый сельскохозяйственный налог","","000 10503000010000 110",300,2169.5,-1869.5]
["Единый сельскохозяйственный налог","","000 10503010010000 110",300,2169.5,-1869.5]
["Единый сельскохозяйственный налог (сумма платежа (перерасчеты, недоимка и задолженность по соответствующему платежу, в том числе по отмененному))","","000 10503010011000 110",300,2159.5,-1859.5]
["Единый сельскохозяйственный налог (пени и проценты по соответствующему платежу)","","000 10503010012000 110","-",10,"-"]
["НАЛОГИ НА ИМУЩЕСТВО","","000 10600000000000 000",41124100,9233048.5099999998,31891051.490000002]
["Налог на имущество физических лиц","","000 10601000000000 110",891100,184477.15,706622.85]
["Налог на имущество физических лиц, взимаемый по ставкам, применяемым к объектам налогообложения, расположенным в границах поселений","","000 10601030100000 110",891100,184477.15,706622.85]
["Налог на имущество физических лиц, взимаемый по ставкам, применяемым к объектам налогообложения, расположенным в границах поселений (сумма платежа (перерасчеты, недоимка и задолженность по соответствующему платежу, в том числе по отмененному))","","000 10601030101000 110",891100,179505.87,711594.13]
["Налог на имущество физических лиц, взимаемый по ставкам, применяемым к объектам налогообложения, расположенным в границах поселений (пени и проценты по соответствующему платежу)","","000 10601030102000 110","-",4971.28,"-"]
["Транспортный налог","","000 10604000020000 110",11233000,1849183.89,9383816.1099999994]
["Транспортный налог с организаций","","000 10604011020000 110",2433000,1222321.04,1210678.96]
["Транспортный налог с организаций (сумма платежа (перерасчеты, недоимка и задолженность по соответствующему платежу, в том числе по отмененному))","","000 10604011021000 110",2433000,1210614.21,{"$f":"IF(OR(D53=\"-\",E53=D53),\"-\",D53-IF(E53=\"-\",0,E53))","v":1222385.79}]
["Транспортный налог с организаций (пени и проценты по соответствующему платежу)","","000 10604011022000 110","-",11706.83,"-"]
["Транспортный налог с физических лиц","","000 10604012020000 110",8800000,626862.85,8173137.1500000004]
["Транспортный налог с физических лиц (сумма платежа (перерасчеты, недоимка и задолженность по соответствующему платежу, в том числе по отмененному))","","000 10604012021000 110",8800000,578958.23,8221041.7699999996]
["Транспортный налог с физических лиц (пени и проценты по соответствующему платежу)","","000 10604012022000 110","-",47904.62,"-"]
["Земельный налог","","000 10606000000000 110",29000000,7199387.4699999997,21800612.530000001]
["Земельный налог, взимаемый по ставкам, установленным в соответствии с подпунктом 1 пункта 1 статьи 394 Налогового кодекса Российской Федерации","","000 10606010000000 110",600000,83412.240000000005,516587.76]
["Земельный налог, взимаемый по ставкам, установленным в соответствии с подпунктом 1 пункта 1 статьи 394 Налогового кодекса Российской Федерации и применяемым к объектам налогообложения, расположенным в границах поселений","","000 10606013100000 110",600000,83412.240000000005,516587.76]
["Земельный налог, взимаемый по ставкам, установленным в соответствии с подпунктом 2 пункта 1 статьи 394 Налогового кодекса Российской Федерации","","000 10606020000000 110",28400000,7115975.2300000004,21284024.77]
["Земельный налог, взимаемый по ставкам, установленным в соответствии с подпунктом 2 пункта 1 статьи 394 Налогового кодекса Российской Федерации и применяемым к объектам налогообложения, расположенным в границах поселений","","000 10606023100000 110",28400000,7115975.2300000004,21284024.77]
["ГОСУДАРСТВЕННАЯ ПОШЛИНА","","000 10800000000000 000",48400,15800,32600]
["Государственная пошлина за государственную регистрацию, а также за совершение прочих юридически значимых действий","","000 10807000010000 110",48400,15800,32600]
["Государственная пошлина за выдачу специального разрешения на движение по автомобильным дорогам транспортных средств, осуществляющих перевозки опасных, тяжеловесных и (или) крупногабаритных грузов","","000 10807170010000 110",48400,15800,32600]
["Государственная пошлина за выдачу органом местного самоуправления поселения специального разрешения на движение по автомобильным дорогам транспортных средств, осуществляющих перевозки опасных, тяжеловесных и (или) крупногабаритных грузов, зачисляемая в бюджеты поселений","","000 10807175010000 110",48400,15800,32600]
["ДОХОДЫ ОТ ИСПОЛЬЗОВАНИЯ ИМУЩЕСТВА, НАХОДЯЩЕГОСЯ В ГОСУДАРСТВЕННОЙ И МУНИЦИПАЛЬНОЙ СОБСТВЕННОСТИ","","000 11100000000000 000",31235794.260000002,7618606.1900000004,23617188.07]
["Доходы, получаемые в виде арендной либо иной платы за передачу в возмездное пользование государственного и муниципального имущества (за исключением имущества бюджетных и автономных учреждений, а также имущества государственных и муниципальных унитарных предприятий, в том числе казенных)","","000 11105000000000 120",29634844.260000002,7230171.6900000004,22404672.57]
["Доходы, получаемые в виде арендной платы за земельные участки, государственная собственность на которые не разграничена, а также средства от продажи права на заключение договоров аренды указанных земельных участков","","000 11105010000000 120",15970000,2961454.65,13008545.35]
["Доходы, получаемые в виде арендной платы за земельные участки, государственная собственность на которые не разграничена и которые расположены в границах поселений, а также средства от продажи права на заключение договоров аренды указанных земельных участков","","000 11105013100000 120",15970000,2961454.65,13008545.35]
["Доходы, получаемые в виде арендной платы за земли после разграничения государственной собственности на землю, а также средства от продажи права на заключение договоров аренды указанных земельных участков (за исключением земельных участков бюджетных и автономных учреждений)","","000 11105020000000 120",1100000,497313.98,602686.02]
["Доходы, получаемые в виде арендной платы, а также средства от продажи права на заключение договоров аренды за земли, находящиеся в собственности поселений (за исключением земельных участков муниципальных бюджетных и автономных учреждений)","","000 11105025100000 120",1100000,497313.98,602686.02]
["Доходы от сдачи в аренду имущества, находящегося в оперативном управлении органов государственной власти, органов местного самоуправления, государственных внебюджетных фондов и созданных ими учреждений (за исключением имущества бюджетных и автономных учреждений)","","000 11105030000000 120",64844.26,15457.7,49386.559999999998]
["Доходы от сдачи в аренду имущества, находящегося в оперативном управлении органов управления поселений и созданных ими учреждений (за исключением имущества муниципальных бюджетных и автономных учреждений)","","000 11105035100000 120",64844.26,15457.7,49386.559999999998]
["Доходы от сдачи в аренду имущества, составляющего государственную (муниципальную) казну (за исключением земельных участков)","","000 11105070000000 120",12500000,3755945.36,8744054.6400000006]
["Доходы от сдачи в аренду имущества, составляющего казну поселений (за исключением земельных участков)","","000 11105075100000 120",12500000,3755945.36,8744054.6400000006]
["Платежи от государственных и муниципальных унитарных предприятий","","000 11107000000000 120",950,"-",950]
["Доходы от перечисления части прибыли государственных и муниципальных унитарных предприятий, остающейся после уплаты налогов и обязательных платежей","","000 11107010000000 120",950,"-",950]
["Доходы от перечисления части прибыли, остающейся после уплаты налогов и иных обязательных платежей муниципальных унитарных предприятий, созданных поселениями","","000 11107015100000 120",950,"-",950]
["Прочие доходы от использования имущества и прав, находящихся в государственной и муниципальной собственности (за исключением имущества бюджетных и автономных учреждений, а также имущества государственных и муниципальных унитарных предприятий, в том числе казенных)","","000 11109000000000 120",1600000,388434.5,1211565.5]
["Прочие поступления от использования имущества, находящегося в государственной и муниципальной собственности (за исключением имущества бюджетных и автономных учреждений, а также имущества государственных и муниципальных унитарных предприятий, в том числе казенных)","","000 11109040000000 120",1600000,388434.5,1211565.5]
["Прочие поступления от использования имущества, находящегося в собственности поселений (за исключением имущества муниципальных бюджетных и автономных учреждений, а также имущества муниципальных унитарных предприятий, в том числе казенных)","","000 11109045100000 120",1600000,388434.5,1211565.5]
["ДОХОДЫ ОТ ОКАЗАНИЯ ПЛАТНЫХ УСЛУГ (РАБОТ) И КОМПЕНСАЦИИ ЗАТРАТ ГОСУДАРСТВА","","000 11300000000000 000",55938,18758.990000000002,37179.009999999995]
["Доходы от оказания платных услуг (работ)","","000 11301000000000 130",55938,18758.990000000002,37179.009999999995]
["Прочие доходы от оказания платных услуг (работ)","","000 11301990000000 130",55938,18758.990000000002,{"$f":"IF(OR(D85=\"-\",E85=D85),\"-\",D85-IF(E85=\"-\",0,E85))","v":37179.009999999995}]
["Прочие доходы от оказания платных услуг (работ) получателями средств бюджетов поселений","","000 11301995100000 130",55938,18758.990000000002,37179.009999999995]
["ДОХОДЫ ОТ ПРОДАЖИ МАТЕРИАЛЬНЫХ И НЕМАТЕРИАЛЬНЫХ АКТИВОВ","","000 11400000000000 000",2700000,2199600.33,500399.66999999993]
["Доходы от реализации имущества, находящегося в государственной и муниципальной собственности (за исключением имущества бюджетных и автономных учреждений, а также имущества государственных и муниципальных унитарных предприятий, в том числе казенных)","","000 11402000000000 000",2500000,1707690.99,792309.01]
["Доходы от реализации имущества, находящегося в собственности поселений (за исключением имущества муниципальных бюджетных и автономных учреждений, а также имущества муниципальных унитарных предприятий, в том числе казенных), в части реализации основных средств по указанному имуществу","","000 11402050100000 410",2500000,1707690.99,792309.01]
["Доходы от реализации иного имущества, находящегося в собственности поселений (за исключением имущества муниципальных бюджетных и автономных учреждений, а также имущества муниципальных унитарных предприятий, в том числе казенных), в части реализации основных средств по указанному имуществу","","000 11402053100000 410",2500000,1707690.99,792309.01]
["Доходы от продажи земельных участков, находящихся в государственной и муниципальной собственности (за исключением земельных участков бюджетных и автономных учреждений)","","000 11406000000000 430",200000,491909.34,-291909.34000000003]
["Доходы от продажи земельных участков, государственная собственность на которые не разграничена","","000 11406010000000 430",200000,15809.34,184190.66]
["Доходы от продажи земельных участков, государственная собственность на которые не разграничена и которые расположены в границах поселений","","000 11406013100000 430",200000,15809.34,184190.66]
["Доходы от продажи земельных участков, государственная собственность на которые разграничена (за исключением земельных участков бюджетных и автономных учреждений)","","000 11406020000000 430","-",476100,"-"]
["Доходы от продажи земельных участков, находящихся в собственности поселений (за исключением земельных участков муниципальных бюджетных и автономных учреждений)","","000 11406025100000 430","-",476100,"-"]
["ШТРАФЫ, САНКЦИИ, ВОЗМЕЩЕНИЕ УЩЕРБА","","000 11600000000000 000",250000,90553.65,159446.35]
["Поступления сумм в возмещение вреда, причиняемого автомобильным дорогам транспортными средствами, осуществляющими перевозки тяжеловесных и (или) крупногабаритных грузов","","000 11637000000000 140",50000,35163.24,14836.760000000002]
["Поступления сумм в возмещение вреда, причиняемого автомобильным дорогам местного значения транспортными средствами, осуществляющими перевозки тяжеловесных и (или) крупногабаритных грузов, зачисляемые в бюджеты поселений","","000 11637040100000 140",50000,35163.24,14836.760000000002]
["Прочие поступления от денежных взысканий (штрафов) и иных сумм в возмещение ущерба","","000 11690000000000 140",200000,55390.41,144609.59]
["Прочие поступления от денежных взысканий (штрафов) и иных сумм в возмещение ущерба, зачисляемые в бюджеты поселений","","000 11690050100000 140",200000,55390.41,144609.59]
["ПРОЧИЕ НЕНАЛОГОВЫЕ ДОХОДЫ","","000 11700000000000 000","-",28427.42,"-"]
["Прочие неналоговые доходы","","000 11705000000000 180","-",28427.42,"-"]
["Прочие неналоговые доходы бюджетов поселений","","000 11705050100000 180","-",28427.42,"-"]
["БЕЗВОЗМЕЗДНЫЕ ПОСТУПЛЕНИЯ","","000 20000000000000 000",21580268.82,-300586471.30000001,322166740.12]
["БЕЗВОЗМЕЗДНЫЕ ПОСТУПЛЕНИЯ ОТ ДРУГИХ БЮДЖЕТОВ БЮДЖЕТНОЙ СИСТЕМЫ РОССИЙСКОЙ ФЕДЕРАЦИИ","","000 20200000000000 000",21580268.82,12343416.82,9236852]
["Дотации бюджетам субъектов Российской Федерации и муниципальных образований","","000 20201000000000 151",5146100,2830355,2315745]
["Дотации на выравнивание бюджетной обеспеченности","","000 20201001000000 151",5146100,2830355,2315745]
["Дотации бюджетам поселений на выравнивание бюджетной обеспеченности","","000 20201001100000 151",5146100,2830355,2315745]
["Субсидии бюджетам бюджетной системы Российской Федерации (межбюджетные субсидии)","","000 20202000000000 151",12854745.82,7854745.8200000003,5000000]
["Субсидии бюджетам на софинансирование капитальных вложений в объекты государственной (муниципальной) собственности","","000 20202077000000 151",5000000,"-",5000000]
["Субсидии бюджетам поселений на софинансирование капитальных вложений в объекты муниципальной собственности","","000 20202077100000 151",5000000,"-",5000000]
["Субсидии бюджетам муниципальных образований на обеспечение мероприятий по капитальному ремонту многоквартирных домов, переселению граждан из аварийного жилищного фонда и модернизации систем коммунальной инфраструктуры за счет средств, поступивших от государственной корпорации - Фонда содействия реформированию жилищно-коммунального хозяйства","","000 20202088000000 151",7854745.8200000003,7854745.8200000003,"-"]
["Субсидии бюджетам поселений на обеспечение мероприятий по капитальному ремонту многоквартирных домов, переселению граждан из аварийного жилищного фонда и модернизации систем коммунальной инфраструктуры за счет средств, поступивших от государственной корпорации - Фонда содействия реформированию жилищно-коммунального хозяйства","","000 20202088100000 151",7854745.8200000003,7854745.8200000003,"-"]
["Субвенции бюджетам субъектов Российской Федерации и муниципальных образований","","000 20203000000000 151",2248723,1658316,590407]
["Субвенции бюджетам на осуществление первичного воинского учета на территориях, где отсутствуют военные комиссариаты","","000 20203015000000 151",1127132,1097520,29612]
["Субвенции бюджетам поселений на осуществление первичного воинского учета на территориях, где отсутствуют военные комиссариаты","","000 20203015100000 151",1127132,1097520,29612]
["Субвенции местным бюджетам на выполнение передаваемых полномочий субъектов Российской Федерации","","000 20203024000000 151",1121591,560796,{"$f":"IF(OR(D117=\"-\",E117=D117),\"-\",D117-IF(E117=\"-\",0,E117))","v":560795}]
["Субвенции бюджетам поселений на выполнение передаваемых полномочий субъектов Российской Федерации","","000 20203024100000 151",1121591,560796,560795]
["Иные межбюджетные трансферты","","000 20204000000000 151",1330700,"-",1330700]
["Межбюджетные трансферты, передаваемые бюджетам муниципальных образований на осуществление части полномочий по решению вопросов местного значения в соответствии с заключенными соглашениями","","000 20204014000000 151",1330700,"-",1330700]
["Межбюджетные трансферты, передаваемые бюджетам поселений из бюджетов муниципальных районов на осуществление части полномочий по решению вопросов местного значения в соответствии с заключенными соглашениями","","000 20204014100000 151",1330700,"-",1330700]
["ДОХОДЫ БЮДЖЕТОВ БЮДЖЕТНОЙ СИСТЕМЫ РОССИЙСКОЙ ФЕДЕРАЦИИ ОТ ВОЗВРАТА БЮДЖЕТАМИ БЮДЖЕТНОЙ СИСТЕМЫ РОССИЙСКОЙ ФЕДЕРАЦИИ И ОРГАНИЗАЦИЯМИ ОСТАТКОВ СУБСИДИЙ, СУБВЕНЦИЙ И ИНЫХ МЕЖБЮДЖЕТНЫХ ТРАНСФЕРТОВ, ИМЕЮЩИХ ЦЕЛЕВОЕ НАЗНАЧЕНИЕ, ПРОШЛЫХ ЛЕТ","","000 21800000000000 000","-",554164,"-"]
["Доходы бюджетов бюджетной системы Российской Федерации от возврата организациями остатков субсидий прошлых лет","","000 21800000000000 180","-",554164,"-"]
["Доходы бюджетов поселений от возврата организациями остатков субсидий прошлых лет","","000 21805000100000 180","-",554164,"-"]
["Доходы бюджетов поселений от возврата иными организациями остатков субсидий прошлых лет","","000 21805030100000 180","-",554164,"-"]
["ВОЗВРАТ ОСТАТКОВ СУБСИДИЙ, СУБВЕНЦИЙ И ИНЫХ МЕЖБЮДЖЕТНЫХ ТРАНСФЕРТОВ, ИМЕЮЩИХ ЦЕЛЕВОЕ НАЗНАЧЕНИЕ, ПРОШЛЫХ ЛЕТ","","000 21900000000000 000","-",-313484052.12,"-"]
["Возврат остатков субсидий, субвенций и иных межбюджетных трансфертов, имеющих целевое назначение, прошлых лет из бюджетов поселений","","000 21905000100000 151","-",-313484052.12,"-"]

{"sheet":"Расходы","index":1,"n_rows":544,"n_cols":6,"rows_kept":544,"cut":false,"hidden":false,"merged":[[3,5,8,5],[1,0,1,3],[3,0,10,0],[3,1,10,1],[3,2,8,2],[3,3,10,3],[3,4,8,4]]}
[]
["                          2. Расходы бюджета",null,null,null,null,"Форма 0503117  с.2"]
[]
[" Наименование показателя","Код строки","Код расхода по бюджетной классификации","Утвержденные бюджетные назначения","Исполнено","Неисполненные назначения"]
[]
[]
[]
[]
[]
[]
[]
[1,2,3,"4","5","6"]
["Расходы бюджета - всего","200","*** 96000000000000 000",258842446.09,82755827.599999994,{"$f":"IF(OR(D13=\"-\",E13=D13),\"-\",D13-IF(E13=\"-\",0,E13))","v":176086618.49000001}]
["в том числе:"]
["ОБЩЕГОСУДАРСТВЕННЫЕ ВОПРОСЫ","","000 0100 0000000 000 000 ",30116635.02,7114310.0300000003,{"$f":"IF(OR(D15=\"-\",E15=D15),\"-\",D15-IF(E15=\"-\",0,E15))","v":23002324.989999998}]
["Функционирование законодательных (представительных) органов государственной власти и представительных органов муниципальных образований","","000 0103 0000000 000 000 ",469741,222235,247506]
["Обеспечение деятельности Совета депутатов","","000 0103 Г110000 000 000 ",469741,222235,247506]
["Расходы на обеспечение функций органов местного самоуправления в рамках обеспечения деятельности Совета депутатов","","000 0103 Г11Г015 000 000 ",28471,1600,26871]
["Иные выплаты персоналу государственных (муниципальных) органов, за исключением фонда оплаты труда","","000 0103 Г11Г015 122 000 ",26111,"-",26111]
["Расходы","","000 0103 Г11Г015 122 200 ",26111,"-",26111]
["Оплата труда и начисления на выплаты по оплате труда","","000 0103 Г11Г015 122 210 ",20048,"-",20048]
["Прочие выплаты","","000 0103 Г11Г015 122 212 ",20048,"-",20048]
["Оплата работ, услуг","","000 0103 Г11Г015 122 220 ",6063,"-",6063]
["Транспортные услуги","","000 0103 Г11Г015 122 222 ",3063,"-",3063]
["Прочие работы, услуги","","000 0103 Г11Г015 122 226 ",3000,"-",3000]
["Закупка товаров, работ, услуг в сфере информационно-коммуникационных технологий","","000 0103 Г11Г015 242 000 ",2360,1600,760]
["Расходы","","000 0103 Г11Г015 242 200 ",2360,1600,760]
["Оплата работ, услуг","","000 0103 Г11Г015 242 220 ",2360,1600,760]
["Прочие работы, услуги","","000 0103 Г11Г015 242 226 ",2360,1600,760]
["Межбюджетные трансферты бюджетам муниципальных районов из бюджетов поселений на исполнение полномочий по осуществлению внешнего муниципального финансового контроля в рамках обеспечения деятельности Совета депутатов","","000 0103 Г11П703 000 000 ",441270,220635,220635]
["Иные межбюджетные трансферты","","000 0103 Г11П703 540 000 ",441270,220635,220635]
["Расходы","","000 0103 Г11П703 540 200 ",441270,220635,220635]
["Безвозмездные перечисления бюджетам","","000 0103 Г11П703 540 250 ",441270,220635,220635]
["Перечисления другим бюджетам бюджетной системы Российской Федерации","","000 0103 Г11П703 540 251 ",441270,220635,220635]
["Функционирование Правительства Российской Федерации, высших исполнительных органов государственной власти субъектов Российской Федерации, местных администраций","","000 0104 0000000 000 000 ",19211260.41,4467717.53,14743542.879999999]
["Обеспечение деятельности главы администрации","","000 0104 Г120000 000 000 ",506566.42,29512.12,477054.3]
["Расходы на выплаты по оплате труда работников органов местного самоуправления  в рамках обеспечения деятельности главы администрации","","000 0104 Г12Г014 000 000 ",497966.42,29512.12,468454.3]
["Фонд оплаты труда государственных (муниципальных) органов и взносы по обязательному социальному страхованию","","000 0104 Г12Г014 121 000 ",497966.42,29512.12,468454.3]
["Расходы","","000 0104 Г12Г014 121 200 ",497966.42,29512.12,468454.3]
["Оплата труда и начисления на выплаты по оплате труда","","000 0104 Г12Г014 121 210 ",497966.42,29512.12,468454.3]
["Заработная плата","","000 0104 Г12Г014 121 211 ",382462.69,22666.76,359795.93]
["Начисления на выплаты по оплате труда","","000 0104 Г12Г014 121 213 ",115503.73,6845.36,108658.37]
["Расходы на обеспечение функций органов местного самоуправления в рамках обеспечения деятельности главы администрации","","000 0104 Г12Г015 000 000 ",8600,"-",8600]
["Иные выплаты персоналу государственных (муниципальных) органов, за исключением фонда оплаты труда","","000 0104 Г12Г015 122 000 ",8600,"-",8600]
["Расходы","","000 0104 Г12Г015 122 200 ",8600,"-",8600]
["Оплата труда и начисления на выплаты по оплате труда","","000 0104 Г12Г015 122 210 ",8600,"-",8600]
["Прочие выплаты","","000 0104 Г12Г015 122 212 ",8600,"-",8600]
["Обеспечение деятельности администрации","","000 0104 Г130000 000 000 ",17437197.989999998,4157200.99,13279996.999999998]
["Расходы на выплаты по оплате труда работников органов местного самоуправления в рамках обеспечения деятельности администрации","","000 0104 Г13Г014 000 000 ",16834537.120000001,4052977.71,12781559.41]
["Фонд оплаты труда государственных (муниципальных) органов и взносы по обязательному социальному страхованию","","000 0104 Г13Г014 121 000 ",16834537.120000001,4052977.71,12781559.41]
["Расходы","","000 0104 Г13Г014 121 200 ",16834537.120000001,4052977.71,12781559.41]
["Оплата труда и начисления на выплаты по оплате труда","","000 0104 Г13Г014 121 210 ",16834537.120000001,4052977.71,12781559.41]
["Заработная плата","","000 0104 Г13Г014 121 211 ",12929752,3183966,9745786]
["Начисления на выплаты по оплате труда","","000 0104 Г13Г014 121 213 ",3904785.12,869011.71,3035773.41]
["Расходы на обеспечение функций органов местного самоуправления в рамках обеспечения деятельности  администрации","","000 0104 Г13Г015 000 000 ",602660.87,104223.28,498437.58999999997]
["Иные выплаты персоналу государственных (муниципальных) органов, за исключением фонда оплаты труда","","000 0104 Г13Г015 122 000 ",119900,22480.7,97419.3]
["Расходы","","000 0104 Г13Г015 122 200 ",119900,22480.7,97419.3]
["Оплата труда и начисления на выплаты по оплате труда","","000 0104 Г13Г015 122 210 ",46800,8500,38300]
["Прочие выплаты","","000 0104 Г13Г015 122 212 ",46800,8500,38300]
["Оплата работ, услуг","","000 0104 Г13Г015 122 220 ",73100,13980.7,59119.3]
["Транспортные услуги","","000 0104 Г13Г015 122 222 ",55100,12480.7,42619.3]
["Прочие работы, услуги","","000 0104 Г13Г015 122 226 ",18000,1500,16500]
["Закупка товаров, работ, услуг в сфере информационно-коммуникационных технологий","","000 0104 Г13Г015 242 000 ",210730,50540.11,160189.89000000001]
["Расходы","","000 0104 Г13Г015 242 200 ",210730,50540.11,160189.89000000001]
["Оплата работ, услуг","","000 0104 Г13Г015 242 220 ",210730,50540.11,160189.89000000001]
["Услуги связи","","000 0104 Г13Г015 242 221 ",73347,16850,56497]
["Прочие работы, услуги","","000 0104 Г13Г015 242 226 ",137383,33690.11,103692.89]
["Прочая закупка товаров, работ и услуг для обеспечения государственных (муниципальных) нужд","","000 0104 Г13Г015 244 000 ",266546.87,29752.46,236794.41]
["Расходы","","000 0104 Г13Г015 244 200 ",266546.87,29752.46,236794.41]
["Оплата работ, услуг","","000 0104 Г13Г015 244 220 ",266546.87,29752.46,236794.41]
["Работы, услуги по содержанию имущества","","000 0104 Г13Г015 244 225 ",23661,4852.68,18808.32]
["Прочие работы, услуги","","000 0104 Г13Г015 244 226 ",242885.87,24899.78,217986.09]
["Уплата прочих налогов, сборов и иных платежей","","000 0104 Г13Г015 852 000 ",5484,1450.01,4033.99]
["Расходы","","000 0104 Г13Г015 852 200 ",5484,1450.01,4033.99]
["Прочие расходы","","000 0104 Г13Г015 852 290 ",5484,1450.01,4033.99]
["Непрограммные расходы органов местного самоуправления по вопросам жилищно-коммунального хозяйства","","000 0104 Г250000 000 000 ",145905,43773,102132]
["Межбюджетные трансферты бюджетам муниципальных районов из бюджетов поселений на исполнение полномочий по осуществлению внешнего муниципального жилищного контроля в рамках непрограммных расходов органов местного самоуправления по вопросам жилищно-коммунального хозяйства","","000 0104 Г25П704 000 000 ",145905,43773,102132]
["Иные межбюджетные трансферты","","000 0104 Г25П704 540 000 ",145905,43773,102132]
["Расходы","","000 0104 Г25П704 540 200 ",145905,43773,{"$f":"IF(OR(D79=\"-\",E79=D79),\"-\",D79-IF(E79=\"-\",0,E79))","v":102132}]
["Безвозмездные перечисления бюджетам","","000 0104 Г25П704 540 250 ",145905,43773,102132]
["Перечисления другим бюджетам бюджетной системы Российской Федерации","","000 0104 Г25П704 540 251 ",145905,43773,102132]
["Подпрограмма \"Обеспечение правопорядка и профилактика правонарушений\" муниципальной  программы \"Безопасность в МО \"Город Пикалево\"","","000 0104 П420000 000 000 ",1121591,237231.42,884359.58]
["Профилактика безнадзорности и правонарушений несовершеннолетних за счет средств субвенции областного бюджета в рамках подпрограммы \"Обеспечение правопорядка и профилактика правонарушений\" государственной программы Ленинградской области \"Безопасность Ленинградской области\" в рамках подпрограммы \"Обеспечение правопорядка и профилактика правонарушений\" муниципальной  программы \"Безопасность в МО \"Город Пикалево\"","","000 0104 П427133 000 000 ",554293,125575.21,428717.79]
["Фонд оплаты труда государственных (муниципальных) органов и взносы по обязательному социальному страхованию","","000 0104 П427133 121 000 ",529097.65,117484.28,411613.37]
["Расходы","","000 0104 П427133 121 200 ",529097.65,117484.28,411613.37]
["Оплата труда и начисления на выплаты по оплате труда","","000 0104 П427133 121 210 ",529097.65,117484.28,411613.37]
["Заработная плата","","000 0104 П427133 121 211 ",406373,92089.3,314283.7]
["Начисления на выплаты по оплате труда","","000 0104 П427133 121 213 ",122724.65,25394.98,97329.67]
["Иные выплаты персоналу государственных (муниципальных) органов, за исключением фонда оплаты труда","","000 0104 П427133 122 000 ",2000,200,1800]
["Расходы","","000 0104 П427133 122 200 ",2000,200,1800]
["Оплата труда и начисления на выплаты по оплате труда","","000 0104 П427133 122 210 ",1200,200,1000]
["Прочие выплаты","","000 0104 П427133 122 212 ",1200,200,1000]
["Оплата работ, услуг","","000 0104 П427133 122 220 ",800,"-",800]
["Транспортные услуги","","000 0104 П427133 122 222 ",800,"-",800]
["Закупка товаров, работ, услуг в сфере информационно-коммуникационных технологий","","000 0104 П427133 242 000 ",14058.36,3357.12,10701.240000000002]
["Расходы","","000 0104 П427133 242 200 ",11658.36,3357.12,8301.2400000000016]
["Оплата работ, услуг","","000 0104 П427133 242 220 ",11658.36,3357.12,8301.2400000000016]
["Услуги связи","","000 0104 П427133 242 221 ",11658.36,3357.12,8301.2400000000016]
["Поступление нефинансовых активов","","000 0104 П427133 242 300 ",2400,"-",2400]
["Увеличение стоимости материальных запасов","","000 0104 П427133 242 340 ",2400,"-",2400]
["Прочая закупка товаров, работ и услуг для обеспечения государственных (муниципальных) нужд","","000 0104 П427133 244 000 ",9136.99,4533.8100000000004,4603.1799999999994]
["Расходы","","000 0104 П427133 244 200 ",5760,4533.8100000000004,1226.1899999999996]
["Оплата работ, услуг","","000 0104 П427133 244 220 ",5760,4533.8100000000004,1226.1899999999996]
["Услуги связи","","000 0104 П427133 244 221 ",5760,4533.8100000000004,1226.1899999999996]
["Поступление нефинансовых активов","","000 0104 П427133 244 300 ",3376.99,"-",3376.99]
["Увеличение стоимости основных средств","","000 0104 П427133 244 310 ",3376.99,"-",3376.99]
["Мероприятия в сфере административных правоотношений за счет средств субвенции областного бюджета в рамках подпрограммы \"Обеспечение правопорядка и профилактика правонарушений\" государственной программы Ленинградской области \"Безопасность Ленинградской области\" в рамках подпрограммы \"Обеспечение правопорядка и профилактика правонарушений\" муниципальной  программы \"Безопасность в МО \"Город Пикалево\"","","000 0104 П427134 000 000 ",567298,111656.21,455641.79]
["Фонд оплаты труда государственных (муниципальных) органов и взносы по обязательному социальному страхованию","","000 0104 П427134 121 000 ",529097.64,102377.11,426720.53]
["Расходы","","000 0104 П427134 121 200 ",529097.64,102377.11,426720.53]
["Оплата труда и начисления на выплаты по оплате труда","","000 0104 П427134 121 210 ",529097.64,102377.11,426720.53]
["Заработная плата","","000 0104 П427134 121 211 ",406373,79501.759999999995,326871.24]
["Начисления на выплаты по оплате труда","","000 0104 П427134 121 213 ",122724.64,22875.35,99849.290000000008]
["Закупка товаров, работ, услуг в сфере информационно-коммуникационных технологий","","000 0104 П427134 242 000 ",10000,"-",10000]
["Поступление нефинансовых активов","","000 0104 П427134 242 300 ",10000,"-",10000]
["Увеличение стоимости материальных запасов","","000 0104 П427134 242 340 ",10000,"-",10000]
["Прочая закупка товаров, работ и услуг для обеспечения государственных (муниципальных) нужд","","000 0104 П427134 244 000 ",28200.36,9279.1,18921.260000000002]
["Расходы","","000 0104 П427134 244 200 ",16500,9279.1,7220.9]
["Оплата работ, услуг","","000 0104 П427134 244 220 ",16500,9279.1,7220.9]
["Услуги связи","","000 0104 П427134 244 221 ",16500,9279.1,7220.9]
["Поступление нефинансовых активов","","000 0104 П427134 244 300 ",11700.36,"-",11700.36]
["Увеличение стоимости материальных запасов","","000 0104 П427134 244 340 ",11700.36,"-",11700.36]
["Обеспечение проведения выборов и референдумов","","000 0107 0000000 000 000 ",1091720,"-",1091720]
["Непрограммные расходы органов местного самоуправления по решению общегосударственных вопросов","","000 0107 Г210000 000 000 ",1091720,"-",1091720]
["Проведение выборов в рамках непрограммных расходов  органов местного самоуправления по решению общегосударственных вопросов","","000 0107 Г21Г102 000 000 ",1091720,"-",1091720]
["Прочая закупка товаров, работ и услуг для обеспечения государственных (муниципальных) нужд","","000 0107 Г21Г102 244 000 ",1091720,"-",1091720]
["Расходы","","000 0107 Г21Г102 244 200 ",1091720,"-",1091720]
["Прочие расходы","","000 0107 Г21Г102 244 290 ",1091720,"-",1091720]
["Резервные фонды","","000 0111 0000000 000 000 ",487492.61,"-",487492.61]
["Непрограммные расходы органов местного самоуправления по решению общегосударственных вопросов","","000 0111 Г210000 000 000 ",452492.61,"-",452492.61]
["Резервный фонд администрации  в рамках непрограммных расходов  органов местного самоуправления по решению общегосударственных вопросов","","000 0111 Г21Г101 000 000 ",452492.61,"-",452492.61]
["Резервные средства","","000 0111 Г21Г101 870 000 ",452492.61,"-",452492.61]
["Расходы","","000 0111 Г21Г101 870 200 ",452492.61,"-",452492.61]
["Прочие расходы","","000 0111 Г21Г101 870 290 ",452492.61,"-",452492.61]
["Подпрограмма \"Предупреждение чрезвычайных ситуаций, защита населения и территорий от чрезвычайных ситуаций природного и техногенного характера, развитие гражданской обороны, обеспечение пожарной безопасности и безопасности на водных объектах\" муниципальной  программы \"Безопасность в МО \"Город Пикалево\"","","000 0111 П410000 000 000 ",35000,"-",35000]
["Резервный фонд администрации по ликвидации чрезвычайных ситуаций природного и техногенного характера и стихийных бедствий  в рамках подпрограммы \"Предупреждение чрезвычайных ситуаций, защита населения и территорий от чрезвычайных ситуаций природного и техногенного характера, развитие гражданской обороны, обеспечение пожарной безопасности и безопасности на водных объектах\" муниципальной  программы \"Безопасность в МО \"Город Пикалево\"","","000 0111 П41П104 000 000 ",35000,"-",35000]
["Резервные средства","","000 0111 П41П104 870 000 ",35000,"-",35000]
["Расходы","","000 0111 П41П104 870 200 ",35000,"-",35000]
["Прочие расходы","","000 0111 П41П104 870 290 ",35000,"-",35000]
["Другие общегосударственные вопросы","","000 0113 0000000 000 000 ",8856421,2424357.5,6432063.5]
["Непрограммные расходы органов местного самоуправления по решению общегосударственных вопросов","","000 0113 Г210000 000 000 ",8554373,2358978.84,6195394.1600000001]
["Обеспечение деятельности муниципальных казенных учреждений в рамках непрограммных расходов  органов местного самоуправления по решению общегосударственных вопросов","","000 0113 Г21Г016 000 000 ",6865664,1890531.53,4975132.47]
["Фонд оплаты труда казенных учреждений и взносы по обязательному социальному страхованию","","000 0113 Г21Г016 111 000 ",3103515,782616.3,2320898.7000000002]
["Расходы","","000 0113 Г21Г016 111 200 ",3103515,782616.3,{"$f":"IF(OR(D143=\"-\",E143=D143),\"-\",D143-IF(E143=\"-\",0,E143))","v":2320898.7000000002}]
["Оплата труда и начисления на выплаты по оплате труда","","000 0113 Г21Г016 111 210 ",3103515,782616.3,2320898.7000000002]
["Заработная плата","","000 0113 Г21Г016 111 211 ",2383652,588704.52,1794947.48]
["Начисления на выплаты по оплате труда","","000 0113 Г21Г016 111 213 ",719863,193911.78,525951.22]
["Иные выплаты персоналу казенных учреждений, за исключением фонда оплаты труда","","000 0113 Г21Г016 112 000 ",23800,9700,14100]
["Расходы","","000 0113 Г21Г016 112 200 ",23800,9700,14100]
["Оплата труда и начисления на выплаты по оплате труда","","000 0113 Г21Г016 112 210 ",22000,7900,14100]
["Прочие выплаты","","000 0113 Г21Г016 112 212 ",22000,7900,14100]
["Оплата работ, услуг","","000 0113 Г21Г016 112 220 ",1800,1800,"-"]
["Прочие работы, услуги","","000 0113 Г21Г016 112 226 ",1800,1800,"-"]
["Закупка товаров, работ, услуг в сфере информационно-коммуникационных технологий","","000 0113 Г21Г016 242 000 ",912081,225067.53,687013.47]
["Расходы","","000 0113 Г21Г016 242 200 ",652841,181362.53,471478.47]
["Оплата работ, услуг","","000 0113 Г21Г016 242 220 ",652841,181362.53,471478.47]
["Услуги связи","","000 0113 Г21Г016 242 221 ",393744,116212.53,277531.46999999997]
["Работы, услуги по содержанию имущества","","000 0113 Г21Г016 242 225 ",25760,"-",25760]
["Прочие работы, услуги","","000 0113 Г21Г016 242 226 ",233337,65150,168187]
["Поступление нефинансовых активов","","000 0113 Г21Г016 242 300 ",259240,43705,215535]
["Увеличение стоимости основных средств","","000 0113 Г21Г016 242 310 ",72340,"-",72340]
["Увеличение стоимости материальных запасов","","000 0113 Г21Г016 242 340 ",186900,43705,143195]
["Прочая закупка товаров, работ и услуг для обеспечения государственных (муниципальных) нужд","","000 0113 Г21Г016 244 000 ",2821796,869948.34,1951847.6600000001]
["Расходы","","000 0113 Г21Г016 244 200 ",2036829,664739.88,1372089.12]
["Оплата работ, услуг","","000 0113 Г21Г016 244 220 ",1985079,663810.13,1321268.8700000001]
["Услуги связи","","000 0113 Г21Г016 244 221 ",36270,18039.39,18230.61]
["Коммунальные услуги","","000 0113 Г21Г016 244 223 ",766210,341402.04,424807.96]
["Арендная плата за пользование имуществом","","000 0113 Г21Г016 244 224 ",63600,63600,"-"]
["Работы, услуги по содержанию имущества","","000 0113 Г21Г016 244 225 ",699124,147568.70000000001,551555.30000000005]
["Прочие работы, услуги","","000 0113 Г21Г016 244 226 ",419875,93200,326675]
["Прочие расходы","","000 0113 Г21Г016 244 290 ",51750,929.75,50820.25]
["Поступление нефинансовых активов","","000 0113 Г21Г016 244 300 ",784967,205208.46,579758.54]
["Увеличение стоимости основных средств","","000 0113 Г21Г016 244 310 ",32400,1894,30506]
["Увеличение стоимости материальных запасов","","000 0113 Г21Г016 244 340 ",752567,203314.46,549252.54]
["Уплата прочих налогов, сборов и иных платежей","","000 0113 Г21Г016 852 000 ",4472,3199.36,1272.6399999999999]
["Расходы","","000 0113 Г21Г016 852 200 ",4472,3199.36,1272.6399999999999]
["Прочие расходы","","000 0113 Г21Г016 852 290 ",4472,3199.36,1272.6399999999999]
["Обеспечение управления активами и приватизации муниципального имущества  в рамках непрограммных расходов  органов местного самоуправления по решению общегосударственных вопросов","","000 0113 Г21Г103 000 000 ",630000,114248.93,515751.07]
["Прочая закупка товаров, работ и услуг для обеспечения государственных (муниципальных) нужд","","000 0113 Г21Г103 244 000 ",630000,114248.93,515751.07]
["Расходы","","000 0113 Г21Г103 244 200 ",630000,114248.93,515751.07]
["Оплата работ, услуг","","000 0113 Г21Г103 244 220 ",630000,114248.93,515751.07]
["Прочие работы, услуги","","000 0113 Г21Г103 244 226 ",630000,114248.93,515751.07]
["Содержание и обслуживание объектов муниципального имущества в рамках непрограммных расходов органов местного самоуправления по решению общегосударственных вопросов","","000 0113 Г21Г104 000 000 ",425495,258933.27,166561.73000000001]
["Прочая закупка товаров, работ и услуг для обеспечения государственных (муниципальных) нужд","","000 0113 Г21Г104 244 000 ",139295,104223.01,35071.990000000005]
["Расходы","","000 0113 Г21Г104 244 200 ",139295,104223.01,35071.990000000005]
["Оплата работ, услуг","","000 0113 Г21Г104 244 220 ",139295,104223.01,35071.990000000005]
["Работы, услуги по содержанию имущества","","000 0113 Г21Г104 244 225 ",42400,9923.01,32476.989999999998]
["Прочие работы, услуги","","000 0113 Г21Г104 244 226 ",96895,94300,2595]
["Субсидии юридическим лицам (кроме некоммерческих организаций), индивидуальным предпринимателям, физическим лицам","","000 0113 Г21Г104 810 000 ",286200,154710.26,131489.74]
["Расходы","","000 0113 Г21Г104 810 200 ",286200,154710.26,131489.74]
["Безвозмездные перечисления организациям","","000 0113 Г21Г104 810 240 ",286200,154710.26,131489.74]
["Безвозмездные перечисления организациям, за исключением государственных и муниципальных организаций","","000 0113 Г21Г104 810 242 ",286200,154710.26,131489.74]
["Ежегодный членский взнос в Ассоциацию \"Совет муниципальных образований Ленинградской области\" в рамках непрограммных расходов  органов местного самоуправления по решению общегосударственных вопросов","","000 0113 Г21Г105 000 000 ",38964,"-",38964]
["Уплата прочих налогов, сборов и иных платежей","","000 0113 Г21Г105 852 000 ",38964,"-",38964]
["Расходы","","000 0113 Г21Г105 852 200 ",38964,"-",38964]
["Прочие расходы","","000 0113 Г21Г105 852 290 ",38964,"-",38964]
["Ежегодный членский взнос в Союз малых городов Российской Федерации в рамках непрограммных расходов  органов местного самоуправления по решению общегосударственных вопросов","","000 0113 Г21Г106 000 000 ",21525,21000,525]
["Уплата прочих налогов, сборов и иных платежей","","000 0113 Г21Г106 852 000 ",21525,21000,525]
["Расходы","","000 0113 Г21Г106 852 200 ",21525,21000,525]
["Прочие расходы","","000 0113 Г21Г106 852 290 ",21525,21000,525]
["Обеспечение органов местного самоуправления статистической информацией в рамках непрограммных расходов  органов местного самоуправления по решению общегосударственных вопросов","","000 0113 Г21Г107 000 000 ",81780,34080,47700]
["Прочая закупка товаров, работ и услуг для обеспечения государственных (муниципальных) нужд","","000 0113 Г21Г107 244 000 ",81780,34080,47700]
["Расходы","","000 0113 Г21Г107 244 200 ",81780,34080,47700]
["Оплата работ, услуг","","000 0113 Г21Г107 244 220 ",81780,34080,47700]
["Прочие работы, услуги","","000 0113 Г21Г107 244 226 ",81780,34080,47700]
["Мероприятия по диспансеризации лиц, замещающих муниципальные должности и должности муниципальных служащих в рамках непрограммных расходов  органов местного самоуправления по решению общегосударственных вопросов","","000 0113 Г21Г108 000 000 ",50945,"-",50945]
["Прочая закупка товаров, работ и услуг для обеспечения государственных (муниципальных) нужд","","000 0113 Г21Г108 244 000 ",50945,"-",50945]
["Расходы","","000 0113 Г21Г108 244 200 ",50945,"-",{"$f":"IF(OR(D207=\"-\",E207=D207),\"-\",D207-IF(E207=\"-\",0,E207))","v":50945}]
["Оплата работ, услуг","","000 0113 Г21Г108 244 220 ",50945,"-",50945]
["Прочие работы, услуги","","000 0113 Г21Г108 244 226 ",50945,"-",50945]
["Исполнение судебных актов, вступивших в законную силу, по искам к МО \"Город Пикалево\" в рамках непрограммных расходов  органов местного самоуправления по решению общегосударственных вопросов","","000 0113 Г21Г109 000 000 ",440000,40185.11,399814.89]
["Исполнение судебных актов Российской Федерации и мировых соглашений по возмещению вреда, причиненного в результате незаконных действий (бездействия) органов государственной власти (государственных органов), органов местного самоуправления либо должностных лиц этих органов, а также в результате деятельности казенных учреждений","","000 0113 Г21Г109 831 000 ",440000,40185.11,399814.89]
["Расходы","","000 0113 Г21Г109 831 200 ",440000,40185.11,399814.89]
["Прочие расходы","","000 0113 Г21Г109 831 290 ",440000,40185.11,399814.89]
["Подпрограмма \"Развитие муниципальной службы и повышение квалификации кадров органов местного самоуправления МО \"Город Пикалево\" муниципальной  программы \"Развитие муниципального управления и информационного общества в МО \"Город Пикалево\"","","000 0113 П610000 000 000 ",38600,"-",38600]
["Организация повышения квалификации лиц, замещающих должности муниципальной службы в органах местного самоуправления МО \"Город Пикалево\", и лиц, зачисленных в кадровый резерв администрации МО \"Город Пикалево\" в рамках подпрограммы \"Развитие муниципальной службы и повышение квалификации кадров органов местного самоуправления МО \"Город Пикалево\" муниципальной  программы \"Развитие муниципального управления и информационного общества в МО \"Город Пикалево\"","","000 0113 П61П112 000 000 ",38600,"-",38600]
["Прочая закупка товаров, работ и услуг для обеспечения государственных (муниципальных) нужд","","000 0113 П61П112 244 000 ",38600,"-",38600]
["Расходы","","000 0113 П61П112 244 200 ",38600,"-",38600]
["Оплата работ, услуг","","000 0113 П61П112 244 220 ",38600,"-",38600]
["Прочие работы, услуги","","000 0113 П61П112 244 226 ",38600,"-",38600]
["Подпрограмма \"Информирование населения о деятельности органов местного самоуправления МО \"Город Пикалево\" муниципальной  программы \"Развитие муниципального управления и информационного общества в МО \"Город Пикалево\"","","000 0113 П620000 000 000 ",263448,65378.66,198069.34]
["Организация освещения  в печатных и электронных средствах массовой информации, в сети Интернет деятельности органов местного самоуправления, актуальных вопросов и событий политической, общественной, экономической, культурной, спортивной жизни в рамках подпрограммы \"Информирование населения о деятельности органов местного самоуправления МО \"Город Пикалево\" муниципальной  программы \"Развитие муниципального управления и информационного общества в МО \"Город Пикалево\"","","000 0113 П62П016 000 000 ",263448,65378.66,198069.34]
["Закупка товаров, работ, услуг в сфере информационно-коммуникационных технологий","","000 0113 П62П016 242 000 ",263448,65378.66,198069.34]
["Расходы","","000 0113 П62П016 242 200 ",263448,65378.66,198069.34]
["Оплата работ, услуг","","000 0113 П62П016 242 220 ",263448,65378.66,198069.34]
["Прочие работы, услуги","","000 0113 П62П016 242 226 ",263448,65378.66,198069.34]
["НАЦИОНАЛЬНАЯ ОБОРОНА","","000 0200 0000000 000 000 ",1127132,323171.5,803960.5]
["Мобилизационная и вневойсковая подготовка","","000 0203 0000000 000 000 ",1127132,323171.5,803960.5]
["Непрограммные расходы органов местного самоуправления по вопросам национальной обороны","","000 0203 Г220000 000 000 ",1127132,323171.5,803960.5]
["Осуществление первичного воинского учета на территориях, где отсутствуют военные комиссариаты за счет средств субвенции федерального бюджета  в рамках непрограммных расходов органов местного самоуправления по вопросам национальной обороны","","000 0203 Г225118 000 000 ",1127132,323171.5,803960.5]
["Фонд оплаты труда государственных (муниципальных) органов и взносы по обязательному социальному страхованию","","000 0203 Г225118 121 000 ",1004030.79,297053.45,706977.34000000008]
["Расходы","","000 0203 Г225118 121 200 ",1004030.79,297053.45,706977.34000000008]
["Оплата труда и начисления на выплаты по оплате труда","","000 0203 Г225118 121 210 ",1004030.79,297053.45,706977.34000000008]
["Заработная плата","","000 0203 Г225118 121 211 ",771145,239409.46,531735.54]
["Начисления на выплаты по оплате труда","","000 0203 Г225118 121 213 ",232885.79,57643.99,175241.80000000002]
["Закупка товаров, работ, услуг в сфере информационно-коммуникационных технологий","","000 0203 Г225118 242 000 ",80151.600000000006,18886.05,61265.55]
["Расходы","","000 0203 Г225118 242 200 ",48372.6,3886.05,44486.549999999996]
["Оплата работ, услуг","","000 0203 Г225118 242 220 ",48372.6,3886.05,44486.549999999996]
["Услуги связи","","000 0203 Г225118 242 221 ",24072.6,3886.05,20186.55]
["Работы, услуги по содержанию имущества","","000 0203 Г225118 242 225 ",24300,"-",24300]
["Поступление нефинансовых активов","","000 0203 Г225118 242 300 ",31779,15000,16779]
["Увеличение стоимости основных средств","","000 0203 Г225118 242 310 ",11779,"-",11779]
["Увеличение стоимости материальных запасов","","000 0203 Г225118 242 340 ",20000,15000,5000]
["Прочая закупка товаров, работ и услуг для обеспечения государственных (муниципальных) нужд","","000 0203 Г225118 244 000 ",42949.61,7232,35717.61]
["Расходы","","000 0203 Г225118 244 200 ",5160,2232,2928]
["Оплата работ, услуг","","000 0203 Г225118 244 220 ",5160,2232,2928]
["Услуги связи","","000 0203 Г225118 244 221 ",4500,2232,2268]
["Прочие работы, услуги","","000 0203 Г225118 244 226 ",660,"-",660]
["Поступление нефинансовых активов","","000 0203 Г225118 244 300 ",37789.61,5000,32789.61]
["Увеличение стоимости основных средств","","000 0203 Г225118 244 310 ",5000,5000,"-"]
["Увеличение стоимости материальных запасов","","000 0203 Г225118 244 340 ",32789.61,"-",32789.61]
["НАЦИОНАЛЬНАЯ БЕЗОПАСНОСТЬ И ПРАВООХРАНИТЕЛЬНАЯ ДЕЯТЕЛЬНОСТЬ","","000 0300 0000000 000 000 ",891000,45000,846000]
["Защита населения и территории от чрезвычайных ситуаций природного и техногенного характера, гражданская оборона","","000 0309 0000000 000 000 ",70000,45000,25000]
["Подпрограмма \"Предупреждение чрезвычайных ситуаций, защита населения и территорий от чрезвычайных ситуаций природного и техногенного характера, развитие гражданской обороны, обеспечение пожарной безопасности и безопасности на водных объектах\" муниципальной  программы \"Безопасность в МО \"Город Пикалево\"","","000 0309 П410000 000 000 ",70000,45000,25000]
["Межбюджетные трансферты бюджетам муниципальных районов из бюджетов поселений на осуществление полномочий в области создания, содержания и организации деятельности аварийно-спасательных служб и (или) аварийно-спасательных формирований  в рамках подпрограммы \"Предупреждение чрезвычайных ситуаций, защита населения и территорий от чрезвычайных ситуаций природного и техногенного характера, развитие гражданской обороны, обеспечение пожарной безопасности и безопасности на водных объектах\" муниципальной  программы \"Безопасность в МО \"Город Пикалево\"","","000 0309 П41П701 000 000 ",50000,25000,25000]
["Иные межбюджетные трансферты","","000 0309 П41П701 540 000 ",50000,25000,25000]
["Расходы","","000 0309 П41П701 540 200 ",50000,25000,25000]
["Безвозмездные перечисления бюджетам","","000 0309 П41П701 540 250 ",50000,25000,25000]
["Перечисления другим бюджетам бюджетной системы Российской Федерации","","000 0309 П41П701 540 251 ",50000,25000,25000]
["Межбюджетные трансферты бюджетам муниципальных районов из бюджетов поселений на осуществление полномочий в области гражданской обороны, защиты населения и территории от чрезвычайных ситуаций природного и техногенного характера в части подготовки и обучения населения в области гражданской обороны, способам защиты и действиям в чрезвычайных ситуациях  в рамках подпрограммы \"Предупреждение чрезвычайных ситуаций, защита населения и территорий от чрезвычайных ситуаций природного и техногенного характера, развитие гражданской обороны, обеспечение пожарной безопасности и безопасности на водных объектах\" муниципальной  программы \"Безопасность в МО \"Город Пикалево\"","","000 0309 П41П702 000 000 ",20000,20000,"-"]
["Иные межбюджетные трансферты","","000 0309 П41П702 540 000 ",20000,20000,"-"]
["Расходы","","000 0309 П41П702 540 200 ",20000,20000,"-"]
["Безвозмездные перечисления бюджетам","","000 0309 П41П702 540 250 ",20000,20000,"-"]
["Перечисления другим бюджетам бюджетной системы Российской Федерации","","000 0309 П41П702 540 251 ",20000,20000,"-"]
["Обеспечение пожарной безопасности","","000 0310 0000000 000 000 ",321000,"-",321000]
["Подпрограмма \"Предупреждение чрезвычайных ситуаций, защита населения и территорий от чрезвычайных ситуаций природного и техногенного характера, развитие гражданской обороны, обеспечение пожарной безопасности и безопасности на водных объектах\" муниципальной  программы \"Безопасность в МО \"Город Пикалево\"","","000 0310 П410000 000 000 ",321000,"-",321000]
["Обеспечение первичных мер пожарной безопасности  в рамках подпрограммы \"Предупреждение чрезвычайных ситуаций, защита населения и территорий от чрезвычайных ситуаций природного и техногенного характера, развитие гражданской обороны, обеспечение пожарной безопасности и безопасности на водных объектах\" муниципальной  программы \"Безопасность в МО \"Город Пикалево\"","","000 0310 П41П103 000 000 ",321000,"-",321000]
["Прочая закупка товаров, работ и услуг для обеспечения государственных (муниципальных) нужд","","000 0310 П41П103 244 000 ",321000,"-",321000]
["Расходы","","000 0310 П41П103 244 200 ",321000,"-",321000]
["Оплата работ, услуг","","000 0310 П41П103 244 220 ",321000,"-",321000]
["Работы, услуги по содержанию имущества","","000 0310 П41П103 244 225 ",321000,"-",321000]
["Другие вопросы в области национальной безопасности и правоохранительной деятельности","","000 0314 0000000 000 000 ",500000,"-",{"$f":"IF(OR(D271=\"-\",E271=D271),\"-\",D271-IF(E271=\"-\",0,E271))","v":500000}]
["Подпрограмма \"Обеспечение правопорядка и профилактика правонарушений\" муниципальной  программы \"Безопасность в МО \"Город Пикалево\"","","000 0314 П420000 000 000 ",500000,"-",500000]
["Создание в МО \"Город Пикалево\"  аппаратно-программного комплекса автоматизированной информационной системы \"Безопасный город\" в рамках подпрограммы \"Обеспечение правопорядка и профилактика правонарушений\" муниципальной  программы \"Безопасность в МО \"Город Пикалево\"","","000 0314 П42П105 000 000 ",500000,"-",500000]
["Прочая закупка товаров, работ и услуг для обеспечения государственных (муниципальных) нужд","","000 0314 П42П105 244 000 ",500000,"-",500000]
["Расходы","","000 0314 П42П105 244 200 ",500000,"-",500000]
["Оплата работ, услуг","","000 0314 П42П105 244 220 ",500000,"-",500000]
["Прочие работы, услуги","","000 0314 П42П105 244 226 ",500000,"-",500000]
["НАЦИОНАЛЬНАЯ ЭКОНОМИКА","","000 0400 0000000 000 000 ",67730824.420000002,5211252.28,62519572.140000001]
["Транспорт","","000 0408 0000000 000 000 ",1724700,940000,784700]
["Муниципальная  программа \"Развитие   транспортного комплекса в МО \"Город Пикалево\"","","000 0408 П300000 000 000 ",1724700,940000,784700]
["Мероприятия по приобретению аппаратуры спутниковой навигации ГЛОНАСС в рамках  муниципальной программы \"Развитие транспортного комплекса в МО \"Город Пикалево\"","","000 0408 П30П116 000 000 ",243700,"-",243700]
["Прочая закупка товаров, работ и услуг для обеспечения государственных (муниципальных) нужд","","000 0408 П30П116 244 000 ",243700,"-",243700]
["Поступление нефинансовых активов","","000 0408 П30П116 244 300 ",243700,"-",243700]
["Увеличение стоимости основных средств","","000 0408 П30П116 244 310 ",243700,"-",243700]
["Субсидии юридическим лицам, осуществляющим пассажирские перевозки автомобильным транспортом общего пользования в МО \"Город Пикалево\" в рамках муниципальной программы \"Развитие транспортного комплекса в МО \"Город Пикалево\"","","000 0408 П30П603 000 000 ",1481000,940000,541000]
["Субсидии юридическим лицам (кроме некоммерческих организаций), индивидуальным предпринимателям, физическим лицам","","000 0408 П30П603 810 000 ",1481000,940000,541000]
["Расходы","","000 0408 П30П603 810 200 ",1481000,940000,541000]
["Безвозмездные перечисления организациям","","000 0408 П30П603 810 240 ",1481000,940000,541000]
["Безвозмездные перечисления организациям, за исключением государственных и муниципальных организаций","","000 0408 П30П603 810 242 ",1481000,940000,541000]
["Дорожное хозяйство (дорожные фонды)","","000 0409 0000000 000 000 ",64339024.420000002,4171260.28,60167764.140000001]
["Непрограммные расходы органов местного самоуправления по вопросам национальной экономики","","000 0409 Г240000 000 000 ",54591536.149999999,"-",54591536.149999999]
["Обеспечение мероприятий по строительству объектов Комплексного инвестиционного плана за счет средств вышестоящих бюджетов в рамках непрограммных расходов органов местного самоуправления по вопросам национальной экономики","","000 0409 Г240998 000 000 ",54561536.149999999,"-",54561536.149999999]
["Бюджетные инвестиции в объекты капитального строительства государственной (муниципальной) собственности","","000 0409 Г240998 414 000 ",54561536.149999999,"-",54561536.149999999]
["Поступление нефинансовых активов","","000 0409 Г240998 414 300 ",54561536.149999999,"-",54561536.149999999]
["Увеличение стоимости основных средств","","000 0409 Г240998 414 310 ",54561536.149999999,"-",54561536.149999999]
["Обеспечение мероприятий по строительству объектов Комплексного инвестиционного плана в рамках непрограммных расходов  органов местного самоуправления по вопросам национальной экономики","","000 0409 Г24Г115 000 000 ",30000,"-",30000]
["Бюджетные инвестиции в объекты капитального строительства государственной (муниципальной) собственности","","000 0409 Г24Г115 414 000 ",30000,"-",30000]
["Поступление нефинансовых активов","","000 0409 Г24Г115 414 300 ",30000,"-",30000]
["Увеличение стоимости основных средств","","000 0409 Г24Г115 414 310 ",30000,"-",30000]
["Муниципальная  программа \"Развитие   транспортного комплекса в МО \"Город Пикалево\"","","000 0409 П300000 000 000 ",9747488.2699999996,4171260.28,5576227.9900000002]
["Мероприятия по содержанию сети автомобильных дорог общего пользования местного значения в рамках муниципальной программы \"Развитие транспортного комплекса в МО \"Город Пикалево\"","","000 0409 П30П107 000 000 ",9206688.2699999996,4171260.28,5035427.99]
["Прочая закупка товаров, работ и услуг для обеспечения государственных (муниципальных) нужд","","000 0409 П30П107 244 000 ",9206688.2699999996,4171260.28,5035427.99]
["Расходы","","000 0409 П30П107 244 200 ",9206688.2699999996,4171260.28,5035427.99]
["Оплата работ, услуг","","000 0409 П30П107 244 220 ",9206688.2699999996,4171260.28,5035427.99]
["Работы, услуги по содержанию имущества","","000 0409 П30П107 244 225 ",8463653.2799999993,4096835.28,4366818]
["Прочие работы, услуги","","000 0409 П30П107 244 226 ",743034.99,74425,668609.99]
["Капитальный ремонт и ремонт автомобильных дорог общего пользования местного значения  в рамках муниципальной программы \"Развитие   транспортного комплекса в МО \"Город Пикалево\"","","000 0409 П30П108 000 000 ",310600,"-",310600]
["Прочая закупка товаров, работ и услуг для обеспечения государственных (муниципальных) нужд","","000 0409 П30П108 244 000 ",310600,"-",310600]
["Расходы","","000 0409 П30П108 244 200 ",310600,"-",310600]
["Оплата работ, услуг","","000 0409 П30П108 244 220 ",310600,"-",310600]
["Работы, услуги по содержанию имущества","","000 0409 П30П108 244 225 ",310600,"-",310600]
["Капитальный ремонт и ремонт дворовых территорий многоквартирных домов и проездов  к дворовым территориям многоквартирных домов в рамках муниципальной программы \"Развитие транспортного комплекса в МО \"Город Пикалево\"","","000 0409 П30П109 000 000 ",230200,"-",230200]
["Прочая закупка товаров, работ и услуг для обеспечения государственных (муниципальных) нужд","","000 0409 П30П109 244 000 ",230200,"-",230200]
["Расходы","","000 0409 П30П109 244 200 ",230200,"-",230200]
["Оплата работ, услуг","","000 0409 П30П109 244 220 ",230200,"-",230200]
["Работы, услуги по содержанию имущества","","000 0409 П30П109 244 225 ",230200,"-",230200]
["Другие вопросы в области национальной экономики","","000 0412 0000000 000 000 ",1667100,99992,1567108]
["Непрограммные расходы органов местного самоуправления по вопросам национальной экономики","","000 0412 Г240000 000 000 ",1567100,99992,1467108]
["Мероприятия в области строительства, архитектуры и градостроительства в рамках непрограммных расходов органов местного самоуправления по вопросам национальной экономики","","000 0412 Г24Г110 000 000 ",1350000,"-",1350000]
["Прочая закупка товаров, работ и услуг для обеспечения государственных (муниципальных) нужд","","000 0412 Г24Г110 244 000 ",1350000,"-",1350000]
["Расходы","","000 0412 Г24Г110 244 200 ",1350000,"-",1350000]
["Оплата работ, услуг","","000 0412 Г24Г110 244 220 ",1350000,"-",1350000]
["Прочие работы, услуги","","000 0412 Г24Г110 244 226 ",1350000,"-",1350000]
["Мероприятия по землеустройству и землепользованию в рамках непрограммных расходов органов местного самоуправления по вопросам национальной экономики","","000 0412 Г24Г111 000 000 ",217100,99992,117108]
["Прочая закупка товаров, работ и услуг для обеспечения государственных (муниципальных) нужд","","000 0412 Г24Г111 244 000 ",217100,99992,117108]
["Расходы","","000 0412 Г24Г111 244 200 ",217100,99992,117108]
["Оплата работ, услуг","","000 0412 Г24Г111 244 220 ",217100,99992,117108]
["Прочие работы, услуги","","000 0412 Г24Г111 244 226 ",217100,99992,117108]
["Муниципальная программа \"Развитие малого и среднего предпринимательства на территории МО \"Город Пикалево\"","","000 0412 П700000 000 000 ",100000,"-",100000]
["Субсидии на имущественную поддержку предпринимательства в рамках муниципальной программы \"Развитие малого и среднего предпринимательства на территории МО \"Город Пикалево\"","","000 0412 П70П502 000 000 ",20000,"-",20000]
["Субсидии некоммерческим организациям (за исключением государственных (муниципальных) учреждений)","","000 0412 П70П502 630 000 ",20000,"-",20000]
["Расходы","","000 0412 П70П502 630 200 ",20000,"-",20000]
["Безвозмездные перечисления организациям","","000 0412 П70П502 630 240 ",20000,"-",20000]
["Безвозмездные перечисления организациям, за исключением государственных и муниципальных организаций","","000 0412 П70П502 630 242 ",20000,"-",20000]
["Субсидии на информационную, консультационную  поддержку субъектов малого и среднего предпринимательства в рамках муниципальной программы \"Развитие малого и среднего предпринимательства на территории МО \"Город Пикалево\"","","000 0412 П70П503 000 000 ",80000,"-",{"$f":"IF(OR(D335=\"-\",E335=D335),\"-\",D335-IF(E335=\"-\",0,E335))","v":80000}]
["Субсидии некоммерческим организациям (за исключением государственных (муниципальных) учреждений)","","000 0412 П70П503 630 000 ",80000,"-",80000]
["Расходы","","000 0412 П70П503 630 200 ",80000,"-",80000]
["Безвозмездные перечисления организациям","","000 0412 П70П503 630 240 ",80000,"-",80000]
["Безвозмездные перечисления организациям, за исключением государственных и муниципальных организаций","","000 0412 П70П503 630 242 ",80000,"-",80000]
["ЖИЛИЩНО-КОММУНАЛЬНОЕ ХОЗЯЙСТВО","","000 0500 0000000 000 000 ",105997619.84999999,55323129.189999998,50674490.659999996]
["Жилищное хозяйство","","000 0501 0000000 000 000 ",83858365.530000001,48804995.399999999,35053370.130000003]
["Подпрограмма \"Переселение граждан из аварийного и (или) непригодного для проживания жилищного фонда\" муниципальной программы \"Обеспечение качественным жильем граждан в МО \"Город Пикалево\"","","000 0501 П230000 000 000 ",81621101.099999994,48804995.399999999,32816105.699999996]
["Обеспечение мероприятий по переселению граждан из аварийного жилищного фонда с учетом необходимости развития малоэтажного жилищного строительства за счет средств, поступивших от ГК \"Фонд содействия реформированию жилищно-коммунального хозяйства\" в рамках подпрограммы \"Переселение граждан из аварийного и (или) непригодного для проживания жилищного фонда\" муниципальной программы \"Обеспечение качественным жильем граждан в МО \"Город Пикалево\"","","000 0501 П239503 000 000 ",38989882.759999998,23888437.300000001,15101445.459999997]
["Бюджетные инвестиции в объекты капитального строительства государственной (муниципальной) собственности","","000 0501 П239503 414 000 ",38989882.759999998,23888437.300000001,15101445.459999997]
["Поступление нефинансовых активов","","000 0501 П239503 414 300 ",38989882.759999998,23888437.300000001,15101445.459999997]
["Увеличение стоимости основных средств","","000 0501 П239503 414 310 ",38989882.759999998,23888437.300000001,15101445.459999997]
["Обеспечение мероприятий по переселению граждан из аварийного жилищного фонда с учетом необходимости развития малоэтажного жилищного строительства в рамках подпрограммы \"Переселение граждан из аварийного и (или) непригодного для проживания жилищного фонда\" муниципальной программы \"Обеспечение качественным жильем граждан в МО \"Город Пикалево\"","","000 0501 П239603 000 000 ",35276560.640000001,21613348,13663212.640000001]
["Бюджетные инвестиции в объекты капитального строительства государственной (муниципальной) собственности","","000 0501 П239603 414 000 ",35276560.640000001,21613348,13663212.640000001]
["Поступление нефинансовых активов","","000 0501 П239603 414 300 ",35276560.640000001,21613348,13663212.640000001]
["Увеличение стоимости основных средств","","000 0501 П239603 414 310 ",35276560.640000001,21613348,13663212.640000001]
["Обеспечение мероприятий по переселению граждан из аварийного жилищного фонда с учетом необходимости развития малоэтажного жилищного строительства в рамках подпрограммы \"Переселение граждан из аварийного и (или) непригодного для проживания жилищного фонда\" муниципальной программы \"Обеспечение качественным жильем на территории МО \"Город Пикалево\"","","000 0501 П23П101 000 000 ",5306757.7,3303210.1,2003547.6]
["Бюджетные инвестиции в объекты капитального строительства государственной (муниципальной) собственности","","000 0501 П23П101 414 000 ",5306757.7,3303210.1,2003547.6]
["Поступление нефинансовых активов","","000 0501 П23П101 414 300 ",5306757.7,3303210.1,2003547.6]
["Увеличение стоимости основных средств","","000 0501 П23П101 414 310 ",5306757.7,3303210.1,2003547.6]
["Обеспечение мероприятий по сносу расселенных аварийных домов в рамках подпрограммы \"Переселение граждан из аварийного и (или) непригодного для проживания жилищного фонда\" муниципальной программы \"Обеспечение качественным жильем граждан в МО \"Город Пикалево\"","","000 0501 П23П102 000 000 ",2047900,"-",2047900]
["Прочая закупка товаров, работ и услуг для обеспечения государственных (муниципальных) нужд","","000 0501 П23П102 244 000 ",2047900,"-",2047900]
["Расходы","","000 0501 П23П102 244 200 ",2047900,"-",2047900]
["Оплата работ, услуг","","000 0501 П23П102 244 220 ",2047900,"-",2047900]
["Прочие работы, услуги","","000 0501 П23П102 244 226 ",2047900,"-",2047900]
["Подпрограмма \"Развитие коммунальной и жилищной инфраструктуры в МО \"Город Пикалево\" муниципальной  программы \"Развитие коммунальной,  жилищной инфраструктуры и благоустройства, повышение энергоэффективности в МО \"Город Пикалево\"","","000 0501 П510000 000 000 ",2237264.4300000002,"-",2237264.4300000002]
["Субсидии на мероприятия по капитальному ремонту многоквартирных домов в рамках подпрограммы \"Развитие коммунальной и жилищной инфраструктуры в МО \"Город Пикалево\" муниципальной  программы \"Развитие коммунальной,  жилищной инфраструктуры и благоустройства, повышение энергоэффективности в МО \"Город Пикалево\"","","000 0501 П51П606 000 000 ",2237264.4300000002,"-",2237264.4300000002]
["Субсидии юридическим лицам (кроме некоммерческих организаций), индивидуальным предпринимателям, физическим лицам","","000 0501 П51П606 810 000 ",2237264.4300000002,"-",2237264.4300000002]
["Расходы","","000 0501 П51П606 810 200 ",2237264.4300000002,"-",2237264.4300000002]
["Безвозмездные перечисления организациям","","000 0501 П51П606 810 240 ",2237264.4300000002,"-",2237264.4300000002]
["Безвозмездные перечисления организациям, за исключением государственных и муниципальных организаций","","000 0501 П51П606 810 242 ",2237264.4300000002,"-",2237264.4300000002]
["Коммунальное хозяйство","","000 0502 0000000 000 000 ",9840088.3900000006,2487250.2000000002,7352838.1900000004]
["Непрограммные расходы органов местного самоуправления по вопросам жилищно-коммунального хозяйства","","000 0502 Г250000 000 000 ",471777,"-",471777]
["Обеспечение мероприятий по строительству объектов Комплексного инвестиционного плана в рамках непрограммных расходов органов местного самоуправления по вопросам жилищного-коммунального хозяйства","","000 0502 Г25Г115 000 000 ",471777,"-",471777]
["Бюджетные инвестиции в объекты капитального строительства государственной (муниципальной) собственности","","000 0502 Г25Г115 414 000 ",471777,"-",471777]
["Поступление нефинансовых активов","","000 0502 Г25Г115 414 300 ",471777,"-",471777]
["Увеличение стоимости основных средств","","000 0502 Г25Г115 414 310 ",471777,"-",471777]
["Подпрограмма \"Развитие коммунальной и жилищной инфраструктуры в МО \"Город Пикалево\" муниципальной  программы \"Развитие коммунальной,  жилищной инфраструктуры и благоустройства, повышение энергоэффективности в МО \"Город Пикалево\"","","000 0502 П510000 000 000 ",9368311.3900000006,2487250.2000000002,6881061.1900000004]
["Субсидии на мероприятия по строительству и реконструкции объектов водоснабжения, водоотведения и очистки сточных вод за счет средств областного бюджета в рамках подпрограммы \"Развитие коммунальной и жилищной инфраструктуры в МО \"Город Пикалево\" муниципальной программы \"Развитие коммунальной, жилищной инфраструктуры и благоустройства, повышение энергоэффективности в МО \"Город Пикалево\"","","000 0502 П517025 000 000 ",5000000,"-",5000000]
["Субсидии юридическим лицам (кроме некоммерческих организаций), индивидуальным предпринимателям, физическим лицам","","000 0502 П517025 810 000 ",5000000,"-",5000000]
["Расходы","","000 0502 П517025 810 200 ",5000000,"-",5000000]
["Безвозмездные перечисления организациям","","000 0502 П517025 810 240 ",5000000,"-",5000000]
["Безвозмездные перечисления государственным и муниципальным организациям","","000 0502 П517025 810 241 ",5000000,"-",5000000]
["Субсидии на мероприятия, направленные на безаварийную работу объектов водоснабжения и водоотведения в рамках подпрограммы \"Развитие коммунальной и жилищной инфраструктуры в МО \"Город Пикалево\" муниципальной  программы \"Развитие коммунальной,  жилищной инфраструктуры и благоустройства, повышение энергоэффективности в МО \"Город Пикалево\"","","000 0502 П51П604 000 000 ",60000,"-",60000]
["Субсидии юридическим лицам (кроме некоммерческих организаций), индивидуальным предпринимателям, физическим лицам","","000 0502 П51П604 810 000 ",60000,"-",60000]
["Расходы","","000 0502 П51П604 810 200 ",60000,"-",60000]
["Безвозмездные перечисления организациям","","000 0502 П51П604 810 240 ",60000,"-",60000]
["Безвозмездные перечисления государственным и муниципальным организациям","","000 0502 П51П604 810 241 ",60000,"-",60000]
["Субсидии на оплату кредита и процентов по нему перед ОАО \"ЛОКС\"  в рамках подпрограммы \"Развитие коммунальной и жилищной инфраструктуры в МО \"Город Пикалево\" муниципальной  программы \"Развитие коммунальной,  жилищной инфраструктуры и благоустройства, повышение энергоэффективности в МО \"Город Пикалево\"","","000 0502 П51П605 000 000 ",4188311.39,2487250.2000000002,1701061.19]
["Субсидии юридическим лицам (кроме некоммерческих организаций), индивидуальным предпринимателям, физическим лицам","","000 0502 П51П605 810 000 ",4188311.39,2487250.2000000002,1701061.19]
["Расходы","","000 0502 П51П605 810 200 ",4188311.39,2487250.2000000002,1701061.19]
["Безвозмездные перечисления организациям","","000 0502 П51П605 810 240 ",4188311.39,2487250.2000000002,1701061.19]
["Безвозмездные перечисления государственным и муниципальным организациям","","000 0502 П51П605 810 241 ",4188311.39,2487250.2000000002,1701061.19]
["Субсидии на мероприятия по строительству и реконструкции объектов водоснабжения, водоотведения и очистки сточных вод в рамках подпрограммы \"Развитие коммунальной и жилищной инфраструктуры в МО \"Город Пикалево\" муниципальной  программы \"Развитие коммунальной,  жилищной инфраструктуры и благоустройства, повышение энергоэффективности в МО \"Город Пикалево\"","","000 0502 П51П608 000 000 ",120000,"-",120000]
["Субсидии юридическим лицам (кроме некоммерческих организаций), индивидуальным предпринимателям, физическим лицам","","000 0502 П51П608 810 000 ",120000,"-",120000]
["Расходы","","000 0502 П51П608 810 200 ",120000,"-",120000]
["Безвозмездные перечисления организациям","","000 0502 П51П608 810 240 ",120000,"-",120000]
["Безвозмездные перечисления государственным и муниципальным организациям","","000 0502 П51П608 810 241 ",120000,"-",120000]
["Благоустройство","","000 0503 0000000 000 000 ",12125365.93,4030883.59,8094482.3399999999]
["Непрограммные расходы органов местного самоуправления по вопросам жилищно-коммунального хозяйства","","000 0503 Г250000 000 000 ",183565.93,76545.53,107020.4]
["Прочие мероприятия  по благоустройству территории в рамках непрограммных расходов органов местного самоуправления по вопросам жилищно-коммунального хозяйства","","000 0503 Г25Г114 000 000 ",183565.93,76545.53,107020.4]
["Прочая закупка товаров, работ и услуг для обеспечения государственных (муниципальных) нужд","","000 0503 Г25Г114 244 000 ",183565.93,76545.53,107020.4]
["Расходы","","000 0503 Г25Г114 244 200 ",183565.93,76545.53,107020.4]
["Оплата работ, услуг","","000 0503 Г25Г114 244 220 ",183565.93,76545.53,107020.4]
["Прочие работы, услуги","","000 0503 Г25Г114 244 226 ",183565.93,76545.53,{"$f":"IF(OR(D399=\"-\",E399=D399),\"-\",D399-IF(E399=\"-\",0,E399))","v":107020.4}]
["Подпрограмма \"Благоустройство территории МО \"Город Пикалево\" муниципальной  программы \"Развитие коммунальной,  жилищной инфраструктуры и благоустройства, повышение энергоэффективности в МО \"Город Пикалево\"","","000 0503 П530000 000 000 ",11941800,3954338.06,7987461.9399999995]
["Обеспечение уличного освещения территории в рамках подпрограммы \"Благоустройство территории МО \"Город Пикалево\" муниципальной  программы \"Развитие коммунальной,  жилищной инфраструктуры и благоустройства, повышение энергоэффективности в МО \"Город Пикалево\"","","000 0503 П53П106 000 000 ",7508500,3540844.54,3967655.46]
["Прочая закупка товаров, работ и услуг для обеспечения государственных (муниципальных) нужд","","000 0503 П53П106 244 000 ",7508500,3540844.54,3967655.46]
["Расходы","","000 0503 П53П106 244 200 ",7508500,3540844.54,3967655.46]
["Оплата работ, услуг","","000 0503 П53П106 244 220 ",7508500,3540844.54,3967655.46]
["Коммунальные услуги","","000 0503 П53П106 244 223 ",7508500,3540844.54,3967655.46]
["Обеспечение озеленения территории в рамках подпрограммы \"Благоустройство территории МО \"Город Пикалево\" муниципальной  программы \"Развитие коммунальной,  жилищной инфраструктуры и благоустройства, повышение энергоэффективности в МО \"Город Пикалево\"","","000 0503 П53П110 000 000 ",1382100,31305,1350795]
["Прочая закупка товаров, работ и услуг для обеспечения государственных (муниципальных) нужд","","000 0503 П53П110 244 000 ",1382100,31305,1350795]
["Расходы","","000 0503 П53П110 244 200 ",1382100,31305,1350795]
["Оплата работ, услуг","","000 0503 П53П110 244 220 ",1382100,31305,1350795]
["Работы, услуги по содержанию имущества","","000 0503 П53П110 244 225 ",1382100,31305,1350795]
["Прочие мероприятия  по благоустройству территории в рамках подпрограммы \"Благоустройство территории МО \"Город Пикалево\"  муниципальной  программы \"Развитие коммунальной,  жилищной инфраструктуры и благоустройства, повышение энергоэффективности в МО \"Город Пикалево\"","","000 0503 П53П111 000 000 ",1582200,55719,1526481]
["Прочая закупка товаров, работ и услуг для обеспечения государственных (муниципальных) нужд","","000 0503 П53П111 244 000 ",1582200,55719,1526481]
["Расходы","","000 0503 П53П111 244 200 ",1582200,55719,1526481]
["Оплата работ, услуг","","000 0503 П53П111 244 220 ",1582200,55719,1526481]
["Работы, услуги по содержанию имущества","","000 0503 П53П111 244 225 ",1476700,55719,1420981]
["Прочие работы, услуги","","000 0503 П53П111 244 226 ",105500,"-",105500]
["Субсидии на мероприятия по содержанию и обслуживанию инженерных сетей, находящихся в муниципальной собственности в рамках подпрограммы \"Благоустройство территории МО \"Город Пикалево\" муниципальной  программы \"Развитие коммунальной,  жилищной инфраструктуры и благоустройства, повышение энергоэффективности в МО \"Город Пикалево\"","","000 0503 П53П607 000 000 ",1469000,326469.52,1142530.48]
["Субсидии юридическим лицам (кроме некоммерческих организаций), индивидуальным предпринимателям, физическим лицам","","000 0503 П53П607 810 000 ",1469000,326469.52,1142530.48]
["Расходы","","000 0503 П53П607 810 200 ",1469000,326469.52,1142530.48]
["Безвозмездные перечисления организациям","","000 0503 П53П607 810 240 ",1469000,326469.52,1142530.48]
["Безвозмездные перечисления государственным и муниципальным организациям","","000 0503 П53П607 810 241 ",943400,154035.29,789364.71]
["Безвозмездные перечисления организациям, за исключением государственных и муниципальных организаций","","000 0503 П53П607 810 242 ",525600,172434.23,353165.77]
["Другие вопросы в области жилищно-коммунального хозяйства","","000 0505 0000000 000 000 ",173800,"-",173800]
["Подпрограмма \"Энергосбережение и повышение энергетической эффективности МО \"Город Пикалево\" муниципальной  программы \"Развитие коммунальной,  жилищной инфраструктуры и благоустройства, повышение энергоэффективности в МО \"Город Пикалево\"","","000 0505 П520000 000 000 ",173800,"-",173800]
["Субсидии на мероприятия по энергосбережению и повышению энергетической эффективности  в рамках подпрограммы \"Энергосбережение и повышение энергетической эффективности МО \"Город Пикалево\" муниципальной  программы \"Развитие коммунальной,  жилищной инфраструктуры и благоустройства, повышение энергоэффективности в МО \"Город Пикалево\"","","000 0505 П52П609 000 000 ",173800,"-",173800]
["Субсидии юридическим лицам (кроме некоммерческих организаций), индивидуальным предпринимателям, физическим лицам","","000 0505 П52П609 810 000 ",173800,"-",173800]
["Расходы","","000 0505 П52П609 810 200 ",173800,"-",173800]
["Безвозмездные перечисления организациям","","000 0505 П52П609 810 240 ",173800,"-",173800]
["Безвозмездные перечисления государственным и муниципальным организациям","","000 0505 П52П609 810 241 ",173800,"-",173800]
["ОБРАЗОВАНИЕ","","000 0700 0000000 000 000 ",10000,"-",10000]
["Молодежная политика и оздоровление детей","","000 0707 0000000 000 000 ",10000,"-",10000]
["Подпрограмма \"Молодежная политика в МО \"Город Пикалево\" муниципальной программы \"Культура, физическая культура, спорт и молодежная политика в МО \"Город Пикалево\"","","000 0707 П130000 000 000 ",10000,"-",10000]
["Субсидии на организацию и проведение мероприятий в сфере молодежной политики в рамках подпрограммы \"Молодежная политика в МО \"Город Пикалево\" муниципальной программы \"Культура, физическая культура, спорт и молодежная политика в МО \"Город Пикалево\"","","000 0707 П13П508 000 000 ",10000,"-",10000]
["Субсидии бюджетным учреждениям на иные цели","","000 0707 П13П508 612 000 ",10000,"-",10000]
["Расходы","","000 0707 П13П508 612 200 ",10000,"-",10000]
["Безвозмездные перечисления организациям","","000 0707 П13П508 612 240 ",10000,"-",10000]
["Безвозмездные перечисления государственным и муниципальным организациям","","000 0707 П13П508 612 241 ",10000,"-",10000]
["КУЛЬТУРА, КИНЕМАТОГРАФИЯ","","000 0800 0000000 000 000 ",24132769.039999999,5208850.5999999996,18923918.439999998]
["Культура","","000 0801 0000000 000 000 ",24132769.039999999,5208850.5999999996,18923918.439999998]
["Подпрограмма  \"Культура в МО \"Город Пикалево\"  муниципальной программы \"Культура, физическая культура, спорт и молодежная политика в МО \"Город Пикалево\"","","000 0801 П110000 000 000 ",24038879.039999999,5208850.5999999996,18830028.439999998]
["Субсидии на капитальный ремонт объектов культуры МО \"Город Пикалево\" за счет средств областного бюджета в рамках подпрограммы \"Культура в МО \"Город Пикалево\" муниципальной программы \"Культура, физическая культура, спорт и молодежная политика в МО \"Город Пикалево\"","","000 0801 П117035 000 000 ",1937838.04,"-",1937838.04]
["Субсидии бюджетным учреждениям на иные цели","","000 0801 П117035 612 000 ",1937838.04,"-",1937838.04]
["Расходы","","000 0801 П117035 612 200 ",1937838.04,"-",1937838.04]
["Безвозмездные перечисления организациям","","000 0801 П117035 612 240 ",1937838.04,"-",1937838.04]
["Безвозмездные перечисления государственным и муниципальным организациям","","000 0801 П117035 612 241 ",1937838.04,"-",1937838.04]
["Субсидии  на обеспечение исполнения расходных обязательств муниципальных образований в соответствии с планами мероприятий (\"дорожными картами\") по реализации указов Президента РФ от 7 мая 2012 года за счет средств бюджета Бокситогорского муниципального района в рамках подпрограммы \"Культура в МО \"Город Пикалево\" муниципальной программы \"Культура, физическая культура, спорт и молодежная политика в МО \"Город Пикалево\"","","000 0801 П11Б745 000 000 ",1330700,"-",1330700]
["Субсидии бюджетным учреждениям на иные цели","","000 0801 П11Б745 612 000 ",1330700,"-",1330700]
["Расходы","","000 0801 П11Б745 612 200 ",1330700,"-",1330700]
["Безвозмездные перечисления организациям","","000 0801 П11Б745 612 240 ",1330700,"-",1330700]
["Безвозмездные перечисления государственным и муниципальным организациям","","000 0801 П11Б745 612 241 ",1330700,"-",1330700]
["Предоставление муниципальным бюджетным учреждениям субсидий  в рамках подпрограммы \"Культура в МО \"Город Пикалево\" муниципальной программы \"Культура, физическая культура, спорт и молодежная политика в МО \"Город Пикалево\"","","000 0801 П11П017 000 000 ",18722341,5189850.5999999996,13532490.4]
["Субсидии бюджетным учреждениям на финансовое обеспечение государственного (муниципального) задания на оказание государственных (муниципальных) услуг (выполнение работ)","","000 0801 П11П017 611 000 ",18722341,5189850.5999999996,13532490.4]
["Расходы","","000 0801 П11П017 611 200 ",18722341,5189850.5999999996,13532490.4]
["Безвозмездные перечисления организациям","","000 0801 П11П017 611 240 ",18722341,5189850.5999999996,13532490.4]
["Безвозмездные перечисления государственным и муниципальным организациям","","000 0801 П11П017 611 241 ",18722341,5189850.5999999996,13532490.4]
["Субсидии на организацию и проведение мероприятий в сфере культуры в рамках подпрограммы \"Культура в МО \"Город Пикалево\" муниципальной программы \"Культура, физическая культура, спорт и молодежная политика в МО \"Город Пикалево\"","","000 0801 П11П504 000 000 ",48000,19000,29000]
["Субсидии бюджетным учреждениям на иные цели","","000 0801 П11П504 612 000 ",48000,19000,29000]
["Расходы","","000 0801 П11П504 612 200 ",48000,19000,29000]
["Безвозмездные перечисления организациям","","000 0801 П11П504 612 240 ",48000,19000,29000]
["Безвозмездные перечисления государственным и муниципальным организациям","","000 0801 П11П504 612 241 ",48000,19000,29000]
["Субсидии на капитальный ремонт объектов культуры МО \"Город Пикалево\" в рамках подпрограммы \"Культура в МО \"Город Пикалево\" муниципальной программы \"Культура, физическая культура, спорт и молодежная политика в МО \"Город Пикалево\"","","000 0801 П11П505 000 000 ",2000000,"-",2000000]
["Субсидии бюджетным учреждениям на иные цели","","000 0801 П11П505 612 000 ",2000000,"-",2000000]
["Расходы","","000 0801 П11П505 612 200 ",2000000,"-",{"$f":"IF(OR(D463=\"-\",E463=D463),\"-\",D463-IF(E463=\"-\",0,E463))","v":2000000}]
["Безвозмездные перечисления организациям","","000 0801 П11П505 612 240 ",2000000,"-",2000000]
["Безвозмездные перечисления государственным и муниципальным организациям","","000 0801 П11П505 612 241 ",2000000,"-",2000000]
["Подпрограмма \"Предупреждение чрезвычайных ситуаций, защита населения и территорий от чрезвычайных ситуаций природного и техногенного характера, развитие гражданской обороны, обеспечение пожарной безопасности и безопасности на водных объектах\" муниципальной  программы \"Безопасность в МО \"Город Пикалево\"","","000 0801 П410000 000 000 ",93890,"-",93890]
["Субсидии на обеспечение мероприятий по предупреждению и ликвидации последствий чрезвычайных ситуаций и стихийных бедствий в рамках подпрограммы \"Предупреждение чрезвычайных ситуаций, защита населения и территорий от чрезвычайных ситуаций природного и техногенного характера, развитие гражданской обороны, обеспечение пожарной безопасности и безопасности на водных объектах\" муниципальной  программы \"Безопасность в МО \"Город Пикалево\"","","000 0801 П41П509 000 000 ",93890,"-",93890]
["Субсидии бюджетным учреждениям на иные цели","","000 0801 П41П509 612 000 ",93890,"-",93890]
["Расходы","","000 0801 П41П509 612 200 ",93890,"-",93890]
["Безвозмездные перечисления организациям","","000 0801 П41П509 612 240 ",93890,"-",93890]
["Безвозмездные перечисления государственным и муниципальным организациям","","000 0801 П41П509 612 241 ",93890,"-",93890]
["СОЦИАЛЬНАЯ ПОЛИТИКА","","000 1000 0000000 000 000 ",3752124,1570164,2181960]
["Пенсионное обеспечение","","000 1001 0000000 000 000 ",1922724,401364,1521360]
["Непрограммные расходы органов местного самоуправления по вопросам социальной политики","","000 1001 Г2П0000 000 000 ",1922724,401364,1521360]
["Доплаты к пенсиям муниципальных служащих в рамках непрограммных расходов органов местного самоуправления по вопросам социальной политики","","000 1001 Г2ПГ112 000 000 ",1922724,401364,1521360]
["Пособия, компенсации и иные социальные выплаты гражданам, кроме публичных нормативных обязательств","","000 1001 Г2ПГ112 321 000 ",1922724,401364,1521360]
["Расходы","","000 1001 Г2ПГ112 321 200 ",1922724,401364,1521360]
["Социальное обеспечение","","000 1001 Г2ПГ112 321 260 ",1922724,401364,1521360]
["Пенсии, пособия, выплачиваемые организациями сектора государственного управления","","000 1001 Г2ПГ112 321 263 ",1922724,401364,1521360]
["Социальное обеспечение населения","","000 1003 0000000 000 000 ",1829400,1168800,660600]
["Непрограммные расходы органов местного самоуправления по вопросам социальной политики","","000 1003 Г2П0000 000 000 ",40000,7500,32500]
["Оказание других видов социальной помощи в рамках непрограммных расходов органов местного самоуправления по вопросам социальной политики","","000 1003 Г2ПГ300 000 000 ",40000,7500,32500]
["Пособия, компенсации, меры социальной поддержки по публичным нормативным обязательствам","","000 1003 Г2ПГ300 313 000 ",40000,7500,32500]
["Расходы","","000 1003 Г2ПГ300 313 200 ",40000,7500,32500]
["Социальное обеспечение","","000 1003 Г2ПГ300 313 260 ",40000,7500,32500]
["Пособия по социальной помощи населению","","000 1003 Г2ПГ300 313 262 ",40000,7500,32500]
["Подпрограмма \" Жилье для молодежи\" муниципальной программы \"Обеспечение качественным жильем граждан в МО \"Город Пикалево\"","","000 1003 П210000 000 000 ",296300,"-",296300]
["Субсидии на жилье для молодежи в рамках подпрограммы \"Жилье для молодежи\" муниципальной программы \"Обеспечение качественным жильем граждан в МО \"Город Пикалево\"","","000 1003 П21П601 000 000 ",296300,"-",296300]
["Субсидии гражданам на приобретение жилья","","000 1003 П21П601 322 000 ",296300,"-",296300]
["Расходы","","000 1003 П21П601 322 200 ",296300,"-",296300]
["Социальное обеспечение","","000 1003 П21П601 322 260 ",296300,"-",296300]
["Пособия по социальной помощи населению","","000 1003 П21П601 322 262 ",296300,"-",296300]
["Подпрограмма \" Обеспечение жильем молодых семей\" муниципальной программы \"Обеспечение качественным жильем граждан в МО \"Город Пикалево\"","","000 1003 П220000 000 000 ",1493100,1161300,331800]
["Субсидии на обеспечение жильем молодых семей за счет средств федерального бюджета в рамках подпрограммы \"Обеспечение жильем молодых семей\" муниципальной программы \"Обеспечение качественным жильем граждан в МО \"Город Пикалево\"","","000 1003 П225020 000 000 ",220000,220000,"-"]
["Субсидии гражданам на приобретение жилья","","000 1003 П225020 322 000 ",220000,220000,"-"]
["Расходы","","000 1003 П225020 322 200 ",220000,220000,"-"]
["Социальное обеспечение","","000 1003 П225020 322 260 ",220000,220000,"-"]
["Пособия по социальной помощи населению","","000 1003 П225020 322 262 ",220000,220000,"-"]
["Субсидии на обеспечение жильем молодых семей за счет средств областного бюджета в рамках подпрограммы \"Обеспечение жильем молодых семей\" муниципальной программы \"Обеспечение качественным жильем граждан в МО \"Город Пикалево\"","","000 1003 П227076 000 000 ",858350,858350,"-"]
["Субсидии гражданам на приобретение жилья","","000 1003 П227076 322 000 ",858350,858350,"-"]
["Расходы","","000 1003 П227076 322 200 ",858350,858350,"-"]
["Социальное обеспечение","","000 1003 П227076 322 260 ",858350,858350,"-"]
["Пособия по социальной помощи населению","","000 1003 П227076 322 262 ",858350,858350,"-"]
["Субсидии на обеспечение жильем молодых семей в рамках подпрограммы \"Обеспечение жильем молодых семей\" муниципальной программы \"Обеспечение качественным жильем граждан в МО \"Город Пикалево\"","","000 1003 П22П602 000 000 ",414750,82950,331800]
["Субсидии гражданам на приобретение жилья","","000 1003 П22П602 322 000 ",414750,82950,331800]
["Расходы","","000 1003 П22П602 322 200 ",414750,82950,331800]
["Социальное обеспечение","","000 1003 П22П602 322 260 ",414750,82950,331800]
["Пособия по социальной помощи населению","","000 1003 П22П602 322 262 ",414750,82950,331800]
["ФИЗИЧЕСКАЯ КУЛЬТУРА И СПОРТ","","000 1100 0000000 000 000 ",24224687,7590500,16634187]
["Физическая культура","","000 1101 0000000 000 000 ",24224687,7590500,16634187]
["Подпрограмма  \"Физическая культура и спорт в МО \"Город Пикалево\" муниципальной программы \"Культура, физическая культура, спорт и молодежная политика в МО \"Город Пикалево\"","","000 1101 П120000 000 000 ",24224687,7590500,16634187]
["Предоставление муниципальным бюджетным учреждениям субсидий  в рамках подпрограммы \"Физическая культура и спорт в МО \"Город Пикалево\" муниципальной программы \"Культура, физическая культура, спорт и молодежная политика в МО \"Город Пикалево\"","","000 1101 П12П017 000 000 ",24036687,7586200,16450487]
["Субсидии бюджетным учреждениям на финансовое обеспечение государственного (муниципального) задания на оказание государственных (муниципальных) услуг (выполнение работ)","","000 1101 П12П017 611 000 ",24036687,7586200,16450487]
["Расходы","","000 1101 П12П017 611 200 ",24036687,7586200,16450487]
["Безвозмездные перечисления организациям","","000 1101 П12П017 611 240 ",24036687,7586200,16450487]
["Безвозмездные перечисления государственным и муниципальным организациям","","000 1101 П12П017 611 241 ",24036687,7586200,16450487]
["Субсидии на организацию и проведение мероприятий в сфере физической культуры и спорта в рамках подпрограммы \"Физическая культура и спорт в МО \"Город Пикалево\" муниципальной программы \"Культура, физическая культура, спорт и молодежная политика в МО \"Город Пикалево\"","","000 1101 П12П506 000 000 ",33000,4300,28700]
["Субсидии бюджетным учреждениям на иные цели","","000 1101 П12П506 612 000 ",33000,4300,28700]
["Расходы","","000 1101 П12П506 612 200 ",33000,4300,28700]
["Безвозмездные перечисления организациям","","000 1101 П12П506 612 240 ",33000,4300,28700]
["Безвозмездные перечисления государственным и муниципальным организациям","","000 1101 П12П506 612 241 ",33000,4300,28700]
["Субсидии на организацию мероприятий по приспособлению для доступа инвалидов здания плавательного бассейна города Пикалево в рамках подпрограммы \"Физическая культура и спорт в МО \"Город Пикалево\" муниципальной программы \"Культура, физическая культура, спорт и молодежная политика в МО \"Город Пикалево\"","","000 1101 П12П507 000 000 ",155000,"-",155000]
["Субсидии бюджетным учреждениям на иные цели","","000 1101 П12П507 612 000 ",155000,"-",155000]
["Расходы","","000 1101 П12П507 612 200 ",155000,"-",155000]
["Безвозмездные перечисления организациям","","000 1101 П12П507 612 240 ",155000,"-",155000]
["Безвозмездные перечисления государственным и муниципальным организациям","","000 1101 П12П507 612 241 ",155000,"-",155000]
["СРЕДСТВА МАССОВОЙ ИНФОРМАЦИИ","","000 1200 0000000 000 000 ",615200,307600,{"$f":"IF(OR(D527=\"-\",E527=D527),\"-\",D527-IF(E527=\"-\",0,E527))","v":307600}]
["Периодическая печать и издательства","","000 1202 0000000 000 000 ",615200,307600,307600]
["Подпрограмма \"Информирование населения о деятельности органов местного самоуправления МО \"Город Пикалево\" муниципальной  программы \"Развитие муниципального управления и информационного общества в МО \"Город Пикалево\"","","000 1202 П620000 000 000 ",615200,307600,307600]
["Субсидии на организацию опубликования муниципальных правовых актов и их проектов о деятельности органов местного самоуправления МО \"Город Пикалево\", а также иной социально-значимой информации через официальные СМИ в рамках подпрограммы \"Информирование населения о деятельности органов местного самоуправления МО \"Город Пикалево\" муниципальной  программы \"Развитие муниципального управления и информационного общества в МО \"Город Пикалево\"","","000 1202 П62П501 000 000 ",615200,307600,307600]
["Субсидии некоммерческим организациям (за исключением государственных (муниципальных) учреждений)","","000 1202 П62П501 630 000 ",615200,307600,307600]
["Расходы","","000 1202 П62П501 630 200 ",615200,307600,307600]
["Безвозмездные перечисления организациям","","000 1202 П62П501 630 240 ",615200,307600,307600]
["Безвозмездные перечисления организациям, за исключением государственных и муниципальных организаций","","000 1202 П62П501 630 242 ",615200,307600,307600]
["ОБСЛУЖИВАНИЕ ГОСУДАРСТВЕННОГО И МУНИЦИПАЛЬНОГО ДОЛГА","","000 1300 0000000 000 000 ",244454.76,61850,182604.76]
["Обслуживание государственного внутреннего и муниципального долга","","000 1301 0000000 000 000 ",244454.76,61850,182604.76]
["Непрограммные расходы органов местного самоуправления по вопросам обслуживания муниципального долга","","000 1301 Г2Д0000 000 000 ",244454.76,61850,182604.76]
["Процентные платежи по муниципальному долгу в рамках непрограммных расходов органов местного самоуправления по вопросам обслуживания муниципального долга","","000 1301 Г2ДГ113 000 000 ",244454.76,61850,182604.76]
["Обслуживание муниципального долга","","000 1301 Г2ДГ113 730 000 ",244454.76,61850,182604.76]
["Расходы","","000 1301 Г2ДГ113 730 200 ",244454.76,61850,182604.76]
["Обслуживание государственного (муниципального) долга","","000 1301 Г2ДГ113 730 230 ",244454.76,61850,182604.76]
["Обслуживание внутреннего долга","","000 1301 Г2ДГ113 730 231 ",244454.76,61850,182604.76]
[]
["Результат исполнения бюджета (дефицит / профицит)","450","*** 79000000000000 000",-137112345.00999999,-356183708.17000002,"x                    "]

{"sheet":"ExportParams","index":2,"n_rows":4,"n_cols":2,"rows_kept":4,"cut":false,"hidden":true,"merged":[]}
["EXPORT_SRC_KIND","5"]
["EXPORT_PARAM_SRC_KIND","3"]
["EXPORT_SRC_CODE","001"]
["EXPORT_VB_CODE","3"]

{"sheet":"Источники","index":3,"n_rows":53,"n_cols":6,"rows_kept":53,"cut":false,"hidden":false,"merged":[[0,0,0,5],[1,0,1,5],[3,0,9,0],[3,1,9,1],[3,2,9,2],[3,3,9,3],[3,4,9,4],[3,5,9,5]]}
["             Форма 0503117  с.3"]
["                    3. Источники финансирования дефицита бюджета"]
[]
[" Наименование показателя","Код строки","Код источника финансирования дефицита бюджета по бюджетной классификации","Утвержденные бюджетные назначения","Исполнено","Неисполненные назначения"]
[]
[]
[]
[]
[]
[]
[1,2,3,"4","5","6"]
["Источники финансирования дефицита бюджета - всего","500","*** 90000000000000 000",137112345.00999999,356183708.17000002,-219071363.16]
["в том числе:"]
["источники внутреннего финансирования бюджета","520","*** 01000000000000 000",7068356.8399999999,595578.21,6472778.6299999999]
["из них:"]
["Кредиты кредитных организаций в валюте Российской Федерации",null,"000 01020000000000 000",8467064.6300000008,"-",8467064.6300000008]
["Получение кредитов от кредитных организаций в валюте Российской Федерации",null,"000 01020000000000 700",9000000,"-",9000000]
["Получение кредитов от кредитных организаций бюджетами поселений в валюте Российской Федерации",null,"000 01020000100000 710",9000000,"-",9000000]
["Погашение кредитов, предоставленных кредитными  организациями в валюте Российской Федерации",null,"000 01020000000000 800",-532935.37,"-",-532935.37]
["Погашение бюджетами поселений кредитов от кредитных организаций в валюте Российской Федерации",null,"000 01020000100000 810",-532935.37,"-",-532935.37]
["Бюджетные кредиты от других бюджетов бюджетной системы Российской Федерации",null,"000 01030000000000 000",-3534286,null,-3534286]
["Бюджетные кредиты от других бюджетов бюджетной системы Российской Федерации в валюте Российской Федерации",null,"000 01030100000000 000",-3534286,null,-3534286]
["Погашение бюджетых кредитов, полученных от других бюджетов бюджетной системы Российской Федерации в валюте Российской Федерации",null,"000 01030100000000 800",-3534286,null,-3534286]
["Погашение бюджетами поселений кредитов от других бюджетов бюджетной системы Российской Федерации в валюте Российской Федерации",null,"000 01030100100000 810",-3534286,"-",-3534286]
["Иные источники внутреннего финансирования дефицита бюджета",null,"000 01060000000000 000",2135578.21,595578.21,1540000]
["Акции и иные формы участия в капитале, находящихся в государственной и муниципальной собственности",null,"000 01060100000000 000",55578.21,55578.21,"-"]
["Средства от продажи акций и иных форм участия в капитале, находящихся в государственной и муниципальной собственности",null,"000 01060100000000 630",55578.21,55578.21,"-"]
["Средства от продажи акций и иных форм участия в капитале, находящихся в собственности поселений",null,"000 01060100100000 630",55578.21,55578.21,"-"]
["Исполнение государственных и муниципальных гарантий ",null,"000 01060400000000 000",-7188311.4000000004,"-",-7188311.4000000004]
["Исполнение государственных и муниципальных гарантий в валюте Российской Федерации",null,"000 01060401000000 000",-7188311.4000000004,"-",-7188311.4000000004]
["Исполнение государственных и муниципальных гарантий в валюте Российской Федерации в случае, если исполнение гарантом муниципальных гарантий ведет к возникновению права регрессного требования гаранта к принципалу либо обусловлено уступкой гаранту прав требования бенефициара к принципалу",null,"000 01060401000000 800",-7188311.4000000004,"-",-7188311.4000000004]
["Исполнение муниципальных гарантий поселений в валюте Российской Федерации в случае, если исполнение гарантом муниципальных гарантий ведет к возникновению права регрессного требования гаранта к принципалу либо обусловлено уступкой гаранту прав требования бенефициара к принципалу",null,"000 01060401100000 810",-7188311.4000000004,"-",-7188311.4000000004]
["Прочие бюджетные кредиты (ссуды), предоставленные внутри страны",null,"000 01060800000000 000",9268311.4000000004,540000,8728311.4000000004]
["Возврат прочих бюджетных кредитов (ссуд), предоставленные внутри страны",null,"000 01060800000000 600",9268311.4000000004,540000,8728311.4000000004]
["Возврат прочих бюджетных кредитов (ссуд), предоставленных бюджетами поселений внутри страны",null,"000 01060800100000 640",9268311.4000000004,540000,8728311.4000000004]
["Изменение остатков средств","700","*** 01000000000000 000",130043988.17,355588129.95999998,-225544141.78999999]
["Изменение остатков средств на счетах по учету средств бюджета","700","*** 01050000000000 000",130043988.17,355588129.95999998,-225544141.78999999]
["увеличение остатков средств бюджетов","710","000 01050000000000 500",-140053990.69,-103094538.76000001,"x                    "]
["увеличение прочих остатков средств бюджетов",null,"000 01050200000000 500",-140053990.69,-103094538.76000001,"x                    "]
["увеличение прочих остатков денежных средств бюджетов",null,"000 01050201000000 510",-140053990.69,-103094538.76000001,"x                    "]
["Увеличение прочих остатков денежных средств бюджетов поселений",null,"000 01050201100000 510",-140053990.69,-103094538.76000001,"x                    "]
["уменьшение остатков средств бюджетов","720","000 01050000000000 600",270097978.86000001,458682668.72000003,"x                    "]
["уменьшение прочих остатков средств бюджетов",null,"000 01050200000000 600",270097978.86000001,458682668.72000003,"x                    "]
["уменьшение прочих остатков денежных средств бюджетов",null,"000 01050201000000 610",270097978.86000001,458682668.72000003,"x                    "]
["Уменьшение прочих остатков денежных средств бюджетов поселений",null,"000 01050201100000 610",270097978.86000001,458682668.72000003,"x                    "]
[]
[]
["Заместитель главы администрации",null,null,"Д.В. Николаев"]
[]
[null,null,null,"И.Ю. Жолудева"]
["Заведующий отделом финансов"]
[]
["05 мая 2014 года"]